{"text_format":"1","workbook":"xlsx","n_sheets":4,"sheets":["Placer des nombres entiers","Placer des nombres décimaux","Droites","4DroitesDiff"],"not_rendered":{"charts":0,"images":15,"macros":1,"external_links":0,"defined_names":70,"comments":0,"pivot_tables":0},"unopened":[],"bounds":{"document_bytes":16777216,"sheet_cells":100000,"rows_first":2000,"rows_last":500,"rows_between":2000,"halvings":0,"cell_chars":16384,"cell_head_chars":4096},"cells_cut":0,"cells_raw":0,"read":"whole","date_system":"1900"}

{"sheet":"Placer des nombres entiers","index":0,"n_rows":116,"n_cols":127,"rows_kept":116,"cut":false,"hidden":false,"merged":[[4,103,5,126],[44,85,45,90],[44,96,45,101],[56,9,57,14],[56,16,57,21],[56,27,57,32],[56,36,57,41],[56,45,57,50],[56,55,57,60],[32,20,33,25],[32,29,33,34],[32,38,33,43],[32,48,33,53],[56,64,57,69],[56,71,57,76],[56,94,57,99],[48,106,48,117],[48,118,48,120],[49,106,49,117],[49,118,49,120],[20,55,21,60],[20,70,21,75],[20,82,21,87],[20,91,21,96],[44,3,45,8],[44,10,45,15],[44,21,45,26],[44,30,45,35],[44,39,45,44],[44,49,45,54],[49,16,49,23],[49,26,49,33],[56,83,57,88],[8,1,9,6],[8,12,9,17],[8,21,9,26],[8,30,9,35],[8,40,9,45],[8,49,9,54],[20,1,21,6],[20,8,21,13],[20,18,21,23],[20,27,21,32],[20,36,21,41],[20,46,21,51],[32,2,33,7],[32,9,33,14],[38,125,38,126],[37,46,37,53],[37,56,37,63],[37,106,37,117],[37,118,37,120],[37,123,37,124],[37,125,37,126],[49,125,49,126],[50,125,50,126],[36,106,36,117],[36,118,36,120],[32,57,33,62],[32,72,33,77],[32,84,33,89],[32,93,33,98],[44,58,45,63],[44,73,45,78],[38,123,38,124],[25,66,25,73],[25,76,25,83],[25,106,25,117],[25,118,25,120],[14,123,14,124],[14,125,14,126],[25,123,25,124],[25,125,25,126],[26,123,26,124],[26,125,26,126],[24,106,24,117],[24,118,24,120],[19,103,22,126],[12,106,12,117],[12,118,12,120],[7,103,10,126],[8,64,9,69],[8,76,9,81],[8,85,9,90],[8,96,9,101],[13,36,13,43],[13,46,13,53],[13,106,13,117],[13,118,13,120],[13,123,13,124],[13,125,13,126],[1,16,1,23],[1,26,1,33],[1,106,1,117],[1,118,1,120],[1,123,1,124],[1,125,1,126],[2,123,2,124],[2,125,2,126],[0,106,0,117],[0,118,0,120],[66,85,67,90],[66,96,67,101],[114,16,115,21],[114,64,115,69],[102,73,103,78],[102,85,103,90],[102,96,103,101],[107,16,107,23],[102,10,103,15],[90,84,91,89],[90,93,91,98],[95,46,95,53],[95,56,95,63],[90,9,91,14],[78,70,79,75],[78,82,79,87],[78,91,79,96],[83,66,83,73],[78,8,79,13],[71,36,71,43],[71,46,71,53],[78,55,79,60],[114,83,115,88],[114,94,115,99],[66,76,67,81],[83,76,83,83],[90,2,91,7],[90,20,91,25],[90,29,91,34],[90,38,91,43],[90,48,91,53],[90,57,91,62],[90,72,91,77],[78,1,79,6],[78,18,79,23],[78,27,79,32],[78,36,79,41],[78,46,79,51],[31,105,31,126],[32,105,34,126],[107,26,107,33],[114,9,115,14],[114,27,115,32],[114,36,115,41],[114,45,115,50],[114,55,115,60],[102,3,103,8],[102,21,103,26],[102,30,103,35],[102,39,103,44],[102,49,103,54],[102,58,103,63],[66,1,67,6],[66,12,67,17],[66,21,67,26],[66,30,67,35],[66,40,67,45],[66,49,67,54],[114,71,115,76],[59,16,59,23],[59,26,59,33],[66,64,67,69]]}
[null,null,null,null,null,null,null,null,null,null,null,null,null,null,null,null,null,null,null,null,null,null,null,null,null,null,null,null,null,null,null,null,null,null,null,null,null,null,null,null,null,null,null,null,null,null,null,null,null,null,null,null,null,null,null,null,null,null,null,null,null,null,null,null,null,null,null,null,null,null,null,null,null,null,null,null,null,null,null,null,null,null,null,null,null,null,null,null,null,null,null,null,null,null,null,null,null,null,null,null,null,null,null,null,null,null,"nombre de départ :",null,null,null,null,null,null,null,null,null,null,null,{"$f":"RANDBETWEEN(DV2,DV3)","v":3},null,null,null,null,"A",10,10,10]
[null,"A",null,null,null,null,null,null,null,null,null,null,null,null,null,null,{"$f":"IF(DO1<(DO2*2),(2*DO2)+DO1,DO1)","v":23},null,null,null,null,null,null,null,null,null,{"$f":"Q2+DO2","v":33},null,null,null,null,null,null,null,null,null,null,null,null,null,null,null,null,null,null,null,null,null,null,null,null,null,null,null,null,null,null,null,null,null,null,null,null,null,null,null,null,null,null,null,null,null,null,null,null,null,null,null,null,null,null,null,null,null,null,null,null,null,null,null,null,null,null,null,null,null,null,null,null,null,null,null,null,null,null,null,"incrément :",null,null,null,null,null,null,null,null,null,null,null,{"$f":"INDEX(liste1,1,INT(RAND()*(4-1)+1))","v":10},{"$f":"INDEX(liste,1,INT(RAND()*(4-1)+1))","v":{"$error":"#NAME?"}},{"$f":"INDEX(liste,1,INT(RAND()*(4-1)+1))","v":{"$error":"#NAME?"}},null,null,"borne inf. :",null,1]
[null,null,null,null,null,null,null,null,null,null,null,null,null,null,null,null,null,null,null,null,null,null,null,null,null,null,null,null,null,null,null,null,null,null,null,null,null,null,null,null,null,null,null,null,null,null,null,null,null,null,null,null,null,null,null,null,null,null,null,null,null,null,null,null,null,null,null,null,null,null,null,null,null,null,null,null,null,null,null,null,null,null,null,null,null,null,null,null,null,null,null,null,null,null,null,null,null,null,null,null,null,null,null,null,null,null,null,null,null,null,null,null,null,null,null,null,null,null,null,null,null,null,null,"borne sup. :",null,5]
[]
[null,null,null,null,null,null,null,null,null,null,null,null,null,null,null,null,null,null,null,null,null,null,null,null,null,null,null,null,null,null,null,null,null,null,null,null,null,null,null,null,null,null,null,null,null,null,null,null,null,null,null,null,null,null,null,null,null,null,null,null,null,null,null,null,null,null,null,null,null,null,null,null,null,null,null,null,null,null,null,null,null,null,null,null,null,null,null,null,null,null,null,null,null,null,null,null,null,null,null,null,null,null,null,"Seules les cellules jaunes et vertes sont modifiables.\nRecréez un exercice avec la touche F9 du clavier."]
[]
[]
[null,null,null,null,null,null,null,null,null,null,null,null,null,null,null,null,null,null,null,null,null,null,null,null,null,null,null,null,null,null,null,null,null,null,null,null,null,null,null,null,null,null,null,null,null,null,null,null,null,null,null,null,null,null,null,null,null,null,null,null,null,null,null,null,null,null,null,null,null,null,null,null,null,null,null,null,null,null,null,null,null,null,null,null,null,null,null,null,null,null,null,null,null,null,null,null,null,null,null,null,null,null,null,"Les trois valeurs contenues dans chaque liste peuvent être identiques ou différentes : un tirage au sort se fera parmi les valeurs de ces 3 cellules  pour déterminer l'incrément qui sera utilisé pour la série. Donc si vous voulez utiliser impérativement un incrément mettez 3 valeurs identiques."]
[null,{"$f":"Q2-(2*DO2)+2*(DO2/10)","v":5},null,null,null,null,null,null,null,null,null,null,{"$f":"Q2-5*(DO2/10)","v":18},null,null,null,null,null,null,null,null,{"$f":"Q2+4*(DO2/10)","v":27},null,null,null,null,null,null,null,null,{"$f":"Q2+DO2+3*(DO2/10)","v":36},null,null,null,null,null,null,null,null,null,{"$f":"AE9+DO2","v":46},null,null,null,null,null,null,null,null,{"$f":"AO9+DO2-(DO2/10)","v":55},null,null,null,null,null,null,null,null,null,null,null,null,null,null,{"$f":"AX9+DO2+5*(DO2/10)","v":70},null,null,null,null,null,null,null,null,null,null,null,{"$f":"BM9+DO2+2*(DO2/10)","v":82},null,null,null,null,null,null,null,null,{"$f":"BY9+DO2-(DO2/10)","v":91},null,null,null,null,null,null,null,null,null,null,{"$f":"Q2+(8*DO2)","v":103}]
[]
[]
[]
[null,null,null,null,null,null,null,null,null,null,null,null,null,null,null,null,null,null,null,null,null,null,null,null,null,null,null,null,null,null,null,null,null,null,null,null,null,null,null,null,null,null,null,null,null,null,null,null,null,null,null,null,null,null,null,null,null,null,null,null,null,null,null,null,null,null,null,null,null,null,null,null,null,null,null,null,null,null,null,null,null,null,null,null,null,null,null,null,null,null,null,null,null,null,null,null,null,null,null,null,null,null,null,null,null,null,"nombre de départ :",null,null,null,null,null,null,null,null,null,null,null,{"$f":"RANDBETWEEN(DV14,DV15)","v":10},null,null,null,null,"B",10,10,10]
[null,"B",null,null,null,null,null,null,null,null,null,null,null,null,null,null,null,null,null,null,null,null,null,null,null,null,null,null,null,null,null,null,null,null,null,null,{"$f":"IF($DO13<($DO14*4),($DO14*4)+$DO13,$DO13)","v":50},null,null,null,null,null,null,null,null,null,{"$f":"AK14+DO14","v":60},null,null,null,null,null,null,null,null,null,null,null,null,null,null,null,null,null,null,null,null,null,null,null,null,null,null,null,null,null,null,null,null,null,null,null,null,null,null,null,null,null,null,null,null,null,null,null,null,null,null,null,null,null,null,null,null,null,null,null,"incrément :",null,null,null,null,null,null,null,null,null,null,null,{"$f":"INDEX(liste1a,1,INT(RAND()*(4-1)+1))","v":10},{"$f":"INDEX(liste,1,INT(RAND()*(4-1)+1))","v":{"$error":"#NAME?"}},{"$f":"INDEX(liste,1,INT(RAND()*(4-1)+1))","v":{"$error":"#NAME?"}},null,null,"borne inf. :",null,5]
[null,null,null,null,null,null,null,null,null,null,null,null,null,null,null,null,null,null,null,null,null,null,null,null,null,null,null,null,null,null,null,null,null,null,null,null,null,null,null,null,null,null,null,null,null,null,null,null,null,null,null,null,null,null,null,null,null,null,null,null,null,null,null,null,null,null,null,null,null,null,null,null,null,null,null,null,null,null,null,null,null,null,null,null,null,null,null,null,null,null,null,null,null,null,null,null,null,null,null,null,null,null,null,null,null,null,null,null,null,null,null,null,null,null,null,null,null,null,null,null,null,null,null,"borne sup. :",null,10]
[]
[]
[]
[]
[null,null,null,null,null,null,null,null,null,null,null,null,null,null,null,null,null,null,null,null,null,null,null,null,null,null,null,null,null,null,null,null,null,null,null,null,null,null,null,null,null,null,null,null,null,null,null,null,null,null,null,null,null,null,null,null,null,null,null,null,null,null,null,null,null,null,null,null,null,null,null,null,null,null,null,null,null,null,null,null,null,null,null,null,null,null,null,null,null,null,null,null,null,null,null,null,null,null,null,null,null,null,null,"Les valeurs des bornes déterminent le nombre de départ. Veillez à ce que la borne inférieure soit plus petite que la borne supérireure ! Sinon il y aura une erreur…"]
[null,{"$f":"AK14-(4*DO14)+2*(DO14/10)","v":12},null,null,null,null,null,null,{"$f":"B21+7*(DO14/10)","v":19},null,null,null,null,null,null,null,null,null,{"$f":"I21+DO14+2*(DO14/10)","v":31},null,null,null,null,null,null,null,null,{"$f":"AK14-DO14","v":40},null,null,null,null,null,null,null,null,{"$f":"AK14-(DO14/10)","v":49},null,null,null,null,null,null,null,null,null,{"$f":"AU14-(DO14/10)","v":59},null,null,null,null,null,null,null,null,{"$f":"AU14+8*(DO14/10)","v":68},null,null,null,null,null,null,null,null,null,null,null,null,null,null,{"$f":"AU14+2*DO14+3*(DO14/10)","v":83},null,null,null,null,null,null,null,null,null,null,null,{"$f":"AU14+3*DO14+5*(DO14/10)","v":95},null,null,null,null,null,null,null,null,{"$f":"AU14+4*DO14+4*(DO14/10)","v":104}]
[]
[]
[]
[null,null,null,null,null,null,null,null,null,null,null,null,null,null,null,null,null,null,null,null,null,null,null,null,null,null,null,null,null,null,null,null,null,null,null,null,null,null,null,null,null,null,null,null,null,null,null,null,null,null,null,null,null,null,null,null,null,null,null,null,null,null,null,null,null,null,null,null,null,null,null,null,null,null,null,null,null,null,null,null,null,null,null,null,null,null,null,null,null,null,null,null,null,null,null,null,null,null,null,null,null,null,null,null,null,null,"nombre de départ :",null,null,null,null,null,null,null,null,null,null,null,{"$f":"RANDBETWEEN(DV26,DV27)","v":2},null,null,null,null,"C",100,100,100]
[null,"C",null,null,null,null,null,null,null,null,null,null,null,null,null,null,null,null,null,null,null,null,null,null,null,null,null,null,null,null,null,null,null,null,null,null,null,null,null,null,null,null,null,null,null,null,null,null,null,null,null,null,null,null,null,null,null,null,null,null,null,null,null,null,null,null,{"$f":"IF($DO25<($DO26*7),($DO26*7)+$DO25,$DO25)","v":702},null,null,null,null,null,null,null,null,null,{"$f":"BO26+DO26","v":802},null,null,null,null,null,null,null,null,null,null,null,null,null,null,null,null,null,null,null,null,null,null,null,null,null,null,null,null,null,"incrément :",null,null,null,null,null,null,null,null,null,null,null,{"$f":"INDEX(liste1b,1,INT(RAND()*(4-1)+1))","v":100},{"$f":"INDEX(liste,1,INT(RAND()*(4-1)+1))","v":{"$error":"#NAME?"}},{"$f":"INDEX(liste,1,INT(RAND()*(4-1)+1))","v":{"$error":"#NAME?"}},null,null,"borne inf. :",null,2]
[null,null,null,null,null,null,null,null,null,null,null,null,null,null,null,null,null,null,null,null,null,null,null,null,null,null,null,null,null,null,null,null,null,null,null,null,null,null,null,null,null,null,null,null,null,null,null,null,null,null,null,null,null,null,null,null,null,null,null,null,null,null,null,null,null,null,null,null,null,null,null,null,null,null,null,null,null,null,null,null,null,null,null,null,null,null,null,null,null,null,null,null,null,null,null,null,null,null,null,null,null,null,null,null,null,null,null,null,null,null,null,null,null,null,null,null,null,null,null,null,null,null,null,"borne sup. :",null,4]
[]
[]
[]
[]
[null,null,null,null,null,null,null,null,null,null,null,null,null,null,null,null,null,null,null,null,null,null,null,null,null,null,null,null,null,null,null,null,null,null,null,null,null,null,null,null,null,null,null,null,null,null,null,null,null,null,null,null,null,null,null,null,null,null,null,null,null,null,null,null,null,null,null,null,null,null,null,null,null,null,null,null,null,null,null,null,null,null,null,null,null,null,null,null,null,null,null,null,null,null,null,null,null,null,null,null,null,null,null,null,null,"Ordre sur les nombres entiers naturels"]
[null,null,{"$f":"BO26-7*DO26+5*(DO26/10)","v":52},null,null,null,null,null,null,{"$f":"BO26-6*DO26+2*(DO26/10)","v":122},null,null,null,null,null,null,null,null,null,null,{"$f":"BO26-5*DO26+3*(DO26/10)","v":232},null,null,null,null,null,null,null,null,{"$f":"BO26-4*DO26+2*(DO26/10)","v":322},null,null,null,null,null,null,null,null,{"$f":"BO26-3*DO26+1*(DO26/10)","v":412},null,null,null,null,null,null,null,null,null,{"$f":"BO26-2*DO26+1*(DO26/10)","v":512},null,null,null,null,null,null,null,null,{"$f":"BO26-DO26","v":602},null,null,null,null,null,null,null,null,null,null,null,null,null,null,{"$f":"BO26+5*(DO26/10)","v":752},null,null,null,null,null,null,null,null,null,null,null,{"$f":"BY26+7*(DO26/10)","v":872},null,null,null,null,null,null,null,null,{"$f":"CG33+9*(DO26/10)","v":962},null,null,null,null,null,null,null,null,null,null,null,"Situer précisément ou approximativement des nombres sur une droite graduée de 10 en 10, de 100 en 100…"]
[]
[]
[]
[null,null,null,null,null,null,null,null,null,null,null,null,null,null,null,null,null,null,null,null,null,null,null,null,null,null,null,null,null,null,null,null,null,null,null,null,null,null,null,null,null,null,null,null,null,null,null,null,null,null,null,null,null,null,null,null,null,null,null,null,null,null,null,null,null,null,null,null,null,null,null,null,null,null,null,null,null,null,null,null,null,null,null,null,null,null,null,null,null,null,null,null,null,null,null,null,null,null,null,null,null,null,null,null,null,null,"nombre de départ :",null,null,null,null,null,null,null,null,null,null,null,{"$f":"RANDBETWEEN(DV38,DV39)","v":7},null,null,null,null,"D",1000,1000,1000]
[null,"D",null,null,null,null,null,null,null,null,null,null,null,null,null,null,null,null,null,null,null,null,null,null,null,null,null,null,null,null,null,null,null,null,null,null,null,null,null,null,null,null,null,null,null,null,{"$f":"IF($DO37<($DO38*5),($DO38*5)+$DO37,$DO37)","v":5007},null,null,null,null,null,null,null,null,null,{"$f":"AU38+DO38","v":6007},null,null,null,null,null,null,null,null,null,null,null,null,null,null,null,null,null,null,null,null,null,null,null,null,null,null,null,null,null,null,null,null,null,null,null,null,null,null,null,null,null,null,null,null,null,null,null,null,null,"incrément :",null,null,null,null,null,null,null,null,null,null,null,{"$f":"INDEX(liste1c,1,INT(RAND()*(4-1)+1))","v":1000},{"$f":"INDEX(liste,1,INT(RAND()*(4-1)+1))","v":{"$error":"#NAME?"}},{"$f":"INDEX(liste,1,INT(RAND()*(4-1)+1))","v":{"$error":"#NAME?"}},null,null,"borne inf. :",null,7]
[null,null,null,null,null,null,null,null,null,null,null,null,null,null,null,null,null,null,null,null,null,null,null,null,null,null,null,null,null,null,null,null,null,null,null,null,null,null,null,null,null,null,null,null,null,null,null,null,null,null,null,null,null,null,null,null,null,null,null,null,null,null,null,null,null,null,null,null,null,null,null,null,null,null,null,null,null,null,null,null,null,null,null,null,null,null,null,null,null,null,null,null,null,null,null,null,null,null,null,null,null,null,null,null,null,null,null,null,null,null,null,null,null,null,null,null,null,null,null,null,null,null,null,"borne sup. :",null,9]
[]
[]
[]
[]
[]
[null,null,null,{"$f":"AU38-(5*DO38)+6*(DO38/10)","v":607},null,null,null,null,null,null,{"$f":"AU38-(4*DO38)+3*(DO38/10)","v":1307},null,null,null,null,null,null,null,null,null,null,{"$f":"AU38-(3*DO38)+4*(DO38/10)","v":2407},null,null,null,null,null,null,null,null,{"$f":"AU38-(2*DO38)+3*(DO38/10)","v":3307},null,null,null,null,null,null,null,null,{"$f":"AU38-(1*DO38)+2*(DO38/10)","v":4207},null,null,null,null,null,null,null,null,null,{"$f":"AU38+2*(DO38/10)","v":5207},null,null,null,null,null,null,null,null,{"$f":"BE38+(DO38/10)","v":6107},null,null,null,null,null,null,null,null,null,null,null,null,null,null,{"$f":"BE38+(1*DO38)+6*(DO38/10)","v":7607},null,null,null,null,null,null,null,null,null,null,null,{"$f":"BE38+(2*DO38)+8*(DO38/10)","v":8807},null,null,null,null,null,null,null,null,null,null,{"$f":"BE38+(3*DO38)+9*(DO38/10)","v":9907}]
[]
[]
[]
[null,null,null,null,null,null,null,null,null,null,null,null,null,null,null,null,null,null,null,null,null,null,null,null,null,null,null,null,null,null,null,null,null,null,null,null,null,null,null,null,null,null,null,null,null,null,null,null,null,null,null,null,null,null,null,null,null,null,null,null,null,null,null,null,null,null,null,null,null,null,null,null,null,null,null,null,null,null,null,null,null,null,null,null,null,null,null,null,null,null,null,null,null,null,null,null,null,null,null,null,null,null,null,null,null,null,"nombre de départ :",null,null,null,null,null,null,null,null,null,null,null,{"$f":"RANDBETWEEN($DV$50,$DV$51)","v":11},null,null,null,null,"E",10000,10000,10000]
[null,"E",null,null,null,null,null,null,null,null,null,null,null,null,null,null,{"$f":"IF($DO49<($DO50*2),($DO50*2)+$DO49,$DO49)","v":20011},null,null,null,null,null,null,null,null,null,{"$f":"Q50+DO50","v":30011},null,null,null,null,null,null,null,null,null,null,null,null,null,null,null,null,null,null,null,null,null,null,null,null,null,null,null,null,null,null,null,null,null,null,null,null,null,null,null,null,null,null,null,null,null,null,null,null,null,null,null,null,null,null,null,null,null,null,null,null,null,null,null,null,null,null,null,null,null,null,null,null,null,null,null,null,null,null,null,"incrément :",null,null,null,null,null,null,null,null,null,null,null,{"$f":"INDEX(liste2,1,INT(RAND()*(4-1)+1))","v":10000},{"$f":"INDEX(liste,1,INT(RAND()*(4-1)+1))","v":{"$error":"#NAME?"}},{"$f":"INDEX(liste,1,INT(RAND()*(4-1)+1))","v":{"$error":"#NAME?"}},null,null,"borne inf. :",null,10]
[null,null,null,null,null,null,null,null,null,null,null,null,null,null,null,null,null,null,null,null,null,null,null,null,null,null,null,null,null,null,null,null,null,null,null,null,null,null,null,null,null,null,null,null,null,null,null,null,null,null,null,null,null,null,null,null,null,null,null,null,null,null,null,null,null,null,null,null,null,null,null,null,null,null,null,null,null,null,null,null,null,null,null,null,null,null,null,null,null,null,null,null,null,null,null,null,null,null,null,null,null,null,null,null,null,null,null,null,null,null,null,null,null,null,null,null,null,null,null,null,null,null,null,"borne sup. :",null,15]
[]
[]
[]
[]
[]
[null,null,null,null,null,null,null,null,null,{"$f":"Q50-(1*DO50)+2*(DO50/10)","v":12011},null,null,null,null,null,null,{"$f":"Q50-(DO50/10)","v":19011},null,null,null,null,null,null,null,null,null,null,{"$f":"AA50","v":30011},null,null,null,null,null,null,null,null,{"$f":"AA50+9*(DO50/10)","v":39011},null,null,null,null,null,null,null,null,{"$f":"AA50+(1*DO50)+8*(DO50/10)","v":48011},null,null,null,null,null,null,null,null,null,{"$f":"AA50+(2*DO50)+8*(DO50/10)","v":58011},null,null,null,null,null,null,null,null,{"$f":"AA50+(3*DO50)+7*(DO50/10)","v":67011},null,null,null,null,null,null,{"$f":"AA50+(4*DO50)+4*(DO50/10)","v":74011},null,null,null,null,null,null,null,null,null,null,null,{"$f":"AA50+(5*DO50)+6*(DO50/10)","v":86011},null,null,null,null,null,null,null,null,null,null,{"$f":"AA50+(6*DO50)+7*(DO50/10)","v":97011}]
[]
[null,null,null,null,null,null,null,null,null,null,null,null,null,null,null,null,null,null,null,null,null,null,null,null,null,null,null,null,null,null,null,null,null,null,null,null,null,null,null,null,null,null,null,null,null,null,null,null,null,null,null,null,null,null,null,null,null,null,null,null,null,null,null,null,null,null,null,null,null,null,null,null,null,null,null,null,null,null,null,null,null,null,null,null,null,{"$f":"CH1","v":0}]
[null,{"$f":"B2","v":"A"},null,null,null,null,null,null,null,null,null,null,null,null,null,null,23,0,0,0,0,0,0,0,null,null,33,0,0,0,0,0,{"$f":"AG2","v":0},0]
[]
[]
[]
[]
[]
[]
[null,{"$f":"B9","v":5},0,0,0,0,0,null,null,null,null,null,18,0,0,0,0,0,null,null,null,27,0,0,0,0,0,null,null,null,36,0,{"$f":"AG9","v":0},0,0,0,null,null,null,null,46,0,0,0,0,0,null,null,null,55,0,0,0,0,0,null,null,null,null,null,null,null,null,null,{"$f":"BM9","v":70},0,0,0,0,0,null,null,null,null,null,null,82,0,0,0,0,0,null,null,null,91,0,0,0,0,0,null,null,null,null,null,{"$f":"CS9","v":103},0,0,0,0,0]
[null,{"$f":"B10","v":0},0,0,0,0,0,null,null,null,null,null,0,0,0,0,0,0,null,null,null,0,0,0,0,0,0,null,null,null,0,0,{"$f":"AG10","v":0},0,0,0,null,null,null,null,0,0,0,0,0,0,null,null,null,0,0,0,0,0,0,null,null,null,null,null,null,null,null,null,{"$f":"BM10","v":0},0,0,0,0,0,null,null,null,null,null,null,0,0,0,0,0,0,null,null,null,0,0,0,0,0,0,null,null,null,null,null,{"$f":"CS10","v":0},0,0,0,0,0]
[]
[]
[]
[null,{"$f":"B14","v":"B"},null,null,null,null,null,null,null,null,null,null,null,null,null,null,null,null,null,null,null,null,null,null,null,null,null,null,null,null,null,null,null,null,null,null,{"$f":"AK14","v":50},0,0,0,0,0,0,0,null,null,60,0,0,0,0,0,0,0]
[]
[]
[]
[]
[]
[]
[null,{"$f":"B21","v":12},0,0,0,0,0,null,19,0,0,0,0,0,null,null,null,null,31,0,0,0,0,0,null,null,null,40,0,0,0,0,{"$f":"AG21","v":0},null,null,null,49,0,0,0,0,0,null,null,null,null,59,0,0,0,0,0,null,null,null,68,0,0,0,0,0,null,null,null,null,null,null,null,null,null,{"$f":"BS21","v":83},0,0,0,0,0,null,null,null,null,null,null,95,0,0,0,0,0,null,null,null,104,0,0,0,0,{"$f":"CS21","v":0}]
[null,{"$f":"B22","v":0},0,0,0,0,0,null,0,0,0,0,0,0,null,null,null,null,0,0,0,0,0,0,null,null,null,0,0,0,0,0,{"$f":"AG22","v":0},null,null,null,0,0,0,0,0,0,null,null,null,null,0,0,0,0,0,0,null,null,null,0,0,0,0,0,0,null,null,null,null,null,null,null,null,null,{"$f":"BS22","v":0},0,0,0,0,0,null,null,null,null,null,null,0,0,0,0,0,0,null,null,null,0,0,0,0,0,{"$f":"CS22","v":0}]
[]
[]
[]
[null,{"$f":"B26","v":"C"},null,null,null,null,null,null,null,null,null,null,null,null,null,null,null,null,null,null,null,null,null,null,null,null,null,null,null,null,null,null,null,null,null,null,null,null,null,null,null,null,null,null,null,null,null,null,null,null,null,null,null,null,null,null,null,null,null,null,null,null,null,null,null,null,{"$f":"BO26","v":702},0,0,0,0,0,0,0,null,null,802,0,0,0,0,0,0,0]
[]
[]
[]
[]
[]
[]
[null,null,{"$f":"C33","v":52},0,0,0,0,0,null,122,0,0,0,0,0,null,null,null,null,null,232,0,0,0,0,0,null,null,null,322,0,0,{"$f":"AG33","v":0},0,0,null,null,null,412,0,0,0,0,0,null,null,null,null,512,0,0,0,0,0,null,null,null,602,0,0,0,0,0,null,null,null,null,null,null,null,null,null,{"$f":"BU33","v":752},0,0,0,0,0,null,null,null,null,null,null,872,0,0,0,0,0,null,null,null,962,0,0,{"$f":"CS33","v":0},0,0]
[null,null,{"$f":"C34","v":0},0,0,0,0,0,null,0,0,0,0,0,0,null,null,null,null,null,0,0,0,0,0,0,null,null,null,0,0,0,{"$f":"AG34","v":0},0,0,null,null,null,0,0,0,0,0,0,null,null,null,null,0,0,0,0,0,0,null,null,null,0,0,0,0,0,0,null,null,null,null,null,null,null,null,null,{"$f":"BU34","v":0},0,0,0,0,0,null,null,null,null,null,null,0,0,0,0,0,0,null,null,null,0,0,0,{"$f":"CS34","v":0},0,0]
[]
[]
[]
[null,{"$f":"B38","v":"D"},null,null,null,null,null,null,null,null,null,null,null,null,null,null,null,null,null,null,null,null,null,null,null,null,null,null,null,null,null,null,null,null,null,null,null,null,null,null,null,null,null,null,null,null,{"$f":"AU38","v":5007},0,0,0,0,0,0,0,null,null,6007,0,0,0,0,0,0,0]
[]
[]
[]
[]
[]
[]
[null,null,null,{"$f":"D45","v":607},0,0,0,0,0,null,1307,0,0,0,0,0,null,null,null,null,null,2407,0,0,0,0,0,null,null,null,3307,0,{"$f":"AG45","v":0},0,0,0,null,null,null,4207,0,0,0,0,0,null,null,null,null,5207,0,0,0,0,0,null,null,null,6107,0,0,0,0,0,null,null,null,null,null,null,null,null,null,{"$f":"BV45","v":7607},0,0,0,0,0,null,null,null,null,null,null,8807,0,0,0,0,0,null,null,null,null,null,{"$f":"CS45","v":9907},0,0,0,0,0]
[null,null,null,{"$f":"D46","v":0},0,0,0,0,0,null,0,0,0,0,0,0,null,null,null,null,null,0,0,0,0,0,0,null,null,null,0,0,{"$f":"AG46","v":0},0,0,0,null,null,null,0,0,0,0,0,0,null,null,null,null,0,0,0,0,0,0,null,null,null,0,0,0,0,0,0,null,null,null,null,null,null,null,null,null,{"$f":"BV46","v":0},0,0,0,0,0,null,null,null,null,null,null,0,0,0,0,0,0,null,null,null,null,null,{"$f":"CS46","v":0},0,0,0,0,0]
[]
[]
[]
[null,{"$f":"B50","v":"E"},null,null,null,null,null,null,null,null,null,null,null,null,null,null,{"$f":"Q50","v":20011},0,0,0,0,0,0,0,null,null,30011,0,0,0,0,0,{"$f":"AG50","v":0},0]
[]
[]
[]
[]
[]
[]
[null,null,null,null,null,null,null,null,null,{"$f":"J57","v":12011},0,0,0,0,0,null,19011,0,0,0,0,0,null,null,null,null,null,30011,0,0,0,0,{"$f":"AG57","v":0},null,null,null,39011,0,0,0,0,0,null,null,null,48011,0,0,0,0,0,null,null,null,null,58011,0,0,0,0,0,null,null,null,{"$f":"BM57","v":67011},0,0,0,0,0,null,74011,0,0,0,0,0,null,null,null,null,null,null,86011,0,0,0,0,0,null,null,null,null,null,97011,0,{"$f":"CS57","v":0},0,0,0]
[null,null,null,null,null,null,null,null,null,{"$f":"J58","v":0},0,0,0,0,0,null,0,0,0,0,0,0,null,null,null,null,null,0,0,0,0,0,{"$f":"AG58","v":0},null,null,null,0,0,0,0,0,0,null,null,null,0,0,0,0,0,0,null,null,null,null,0,0,0,0,0,0,null,null,null,{"$f":"BM58","v":0},0,0,0,0,0,null,0,0,0,0,0,0,null,null,null,null,null,null,0,0,0,0,0,0,null,null,null,null,null,0,0,{"$f":"CS58","v":0},0,0,0]

{"sheet":"Placer des nombres décimaux","index":1,"n_rows":116,"n_cols":127,"rows_kept":116,"cut":false,"hidden":false,"merged":[[0,106,0,117],[0,118,0,120],[1,16,1,23],[1,26,1,33],[1,106,1,117],[1,118,1,120],[8,1,9,6],[8,12,9,17],[8,21,9,26],[8,30,9,35],[8,40,9,45],[8,49,9,54],[1,123,1,124],[1,125,1,126],[2,123,2,124],[2,125,2,126],[4,103,5,126],[7,103,10,126],[13,36,13,43],[13,46,13,53],[13,106,13,117],[13,118,13,120],[13,123,13,124],[13,125,13,126],[8,64,9,69],[8,76,9,81],[8,85,9,90],[8,96,9,101],[12,106,12,117],[12,118,12,120],[14,123,14,124],[14,125,14,126],[19,103,22,126],[20,1,21,6],[20,8,21,13],[20,18,21,23],[20,27,21,32],[20,36,21,41],[20,46,21,51],[20,55,21,60],[20,70,21,75],[20,82,21,87],[20,91,21,96],[24,106,24,117],[24,118,24,120],[25,66,25,73],[25,76,25,83],[25,106,25,117],[25,118,25,120],[25,123,25,124],[25,125,25,126],[26,123,26,124],[26,125,26,126],[32,2,33,7],[32,9,33,14],[32,20,33,25],[32,29,33,34],[32,38,33,43],[32,48,33,53],[37,46,37,53],[37,56,37,63],[37,106,37,117],[37,118,37,120],[37,123,37,124],[37,125,37,126],[32,57,33,62],[32,72,33,77],[32,84,33,89],[32,93,33,98],[36,106,36,117],[36,118,36,120],[38,125,38,126],[44,3,45,8],[44,10,45,15],[44,21,45,26],[44,30,45,35],[44,39,45,44],[44,49,45,54],[44,58,45,63],[44,73,45,78],[44,85,45,90],[44,96,45,101],[48,106,48,117],[48,118,48,120],[49,16,49,23],[49,26,49,33],[49,106,49,117],[49,118,49,120],[38,123,38,124],[66,1,67,6],[66,12,67,17],[66,21,67,26],[66,30,67,35],[66,40,67,45],[66,49,67,54],[66,64,67,69],[66,76,67,81],[66,85,67,90],[66,96,67,101],[49,125,49,126],[50,125,50,126],[56,9,57,14],[56,16,57,21],[56,27,57,32],[56,36,57,41],[56,45,57,50],[56,55,57,60],[56,64,57,69],[56,71,57,76],[71,36,71,43],[71,46,71,53],[56,83,57,88],[56,94,57,99],[59,16,59,23],[59,26,59,33],[78,55,79,60],[78,70,79,75],[78,82,79,87],[78,91,79,96],[83,66,83,73],[83,76,83,83],[78,1,79,6],[78,8,79,13],[78,18,79,23],[78,27,79,32],[78,36,79,41],[78,46,79,51],[90,57,91,62],[90,72,91,77],[90,84,91,89],[90,93,91,98],[95,46,95,53],[95,56,95,63],[90,2,91,7],[90,9,91,14],[90,20,91,25],[90,29,91,34],[90,38,91,43],[90,48,91,53],[102,58,103,63],[102,73,103,78],[102,85,103,90],[102,96,103,101],[107,16,107,23],[107,26,107,33],[102,3,103,8],[102,10,103,15],[102,21,103,26],[102,30,103,35],[102,39,103,44],[102,49,103,54],[114,64,115,69],[114,71,115,76],[114,83,115,88],[114,94,115,99],[114,9,115,14],[114,16,115,21],[114,27,115,32],[114,36,115,41],[114,45,115,50],[114,55,115,60]]}
[null,null,null,null,null,null,null,null,null,null,null,null,null,null,null,null,null,null,null,null,null,null,null,null,null,null,null,null,null,null,null,null,null,null,null,null,null,null,null,null,null,null,null,null,null,null,null,null,null,null,null,null,null,null,null,null,null,null,null,null,null,null,null,null,null,null,null,null,null,null,null,null,null,null,null,null,null,null,null,null,null,null,null,null,null,{"$f":"CONCATENATE(\"Fiche : \",RANDBETWEEN(1,1000))","v":"Fiche : 817"},null,null,null,null,null,null,null,null,null,null,null,null,null,null,null,null,null,null,"a",null,"nombre de départ :",null,null,null,null,null,null,null,null,null,null,null,{"$f":"RANDBETWEEN(DV2,DV3)","v":3},null,null,null,null,"liste1 :",1,1,1]
[null,"A",null,null,null,null,null,null,null,null,null,null,null,null,null,null,{"$f":"IF(DO1<(DO2*2),(2*DO2)+DO1,DO1)","v":3},null,null,null,null,null,null,null,null,null,{"$f":"Q2+DO2","v":4},null,null,null,null,null,null,null,null,null,null,null,null,null,null,null,null,null,null,null,null,null,null,null,null,null,null,null,null,null,null,null,null,null,null,null,null,null,null,null,null,null,null,null,null,null,null,null,null,null,null,null,null,null,null,null,null,null,null,null,null,null,null,null,null,null,null,null,null,null,null,null,null,null,null,null,null,null,null,null,"incrément :",null,null,null,null,null,null,null,null,null,null,null,{"$f":"INDEX(liste1,1,INT(RAND()*(4-1)+1))","v":1},{"$f":"INDEX(liste,1,INT(RAND()*(4-1)+1))","v":{"$error":"#NAME?"}},{"$f":"INDEX(liste,1,INT(RAND()*(4-1)+1))","v":{"$error":"#NAME?"}},null,null,"borne inf. :",null,1]
[null,null,null,null,null,null,null,null,null,null,null,null,null,null,null,null,null,null,null,null,null,null,null,null,null,null,null,null,null,null,null,null,null,null,null,null,null,null,null,null,null,null,null,null,null,null,null,null,null,null,null,null,null,null,null,null,null,null,null,null,null,null,null,null,null,null,null,null,null,null,null,null,null,null,null,null,null,null,null,null,null,null,null,null,null,null,null,null,null,null,null,null,null,null,null,null,null,null,null,null,null,null,null,null,null,null,null,null,null,null,null,null,null,null,null,null,null,null,null,null,null,null,null,"borne sup. :",null,5]
[]
[null,null,null,null,null,null,null,null,null,null,null,null,null,null,null,null,null,null,null,null,null,null,null,null,null,null,null,null,null,null,null,null,null,null,null,null,null,null,null,null,null,null,null,null,null,null,null,null,null,null,null,null,null,null,null,null,null,null,null,null,null,null,null,null,null,null,null,null,null,null,null,null,null,null,null,null,null,null,null,null,null,null,null,null,null,null,null,null,null,null,null,null,null,null,null,null,null,null,null,null,null,null,null,"Seules les cellules jaunes et vertes sont modifiables.\nRecréez un exercice avec la touche F9 du clavier."]
[]
[]
[null,null,null,null,null,null,null,null,null,null,null,null,null,null,null,null,null,null,null,null,null,null,null,null,null,null,null,null,null,null,null,null,null,null,null,null,null,null,null,null,null,null,null,null,null,null,null,null,null,null,null,null,null,null,null,null,null,null,null,null,null,null,null,null,null,null,null,null,null,null,null,null,null,null,null,null,null,null,null,null,null,null,null,null,null,null,null,null,null,null,null,null,null,null,null,null,null,null,null,null,null,null,null,"Les trois valeurs contenues dans chaque liste peuvent être identiques ou différentes : un tirage au sort se fera parmi les valeurs de ces 3 cellules  pour déterminer l'incrément qui sera utilisé pour la série. Donc si vous voulez utiliser impérativement un incrément mettez 3 valeurs identiques. Ici les cellules sont verrouillées."]
[null,{"$f":"Q2-(2*DO2)+2*(DO2/10)","v":1.2},null,null,null,null,null,null,null,null,null,null,{"$f":"Q2-5*(DO2/10)","v":2.5},null,null,null,null,null,null,null,null,{"$f":"Q2+4*(DO2/10)","v":3.4},null,null,null,null,null,null,null,null,{"$f":"Q2+DO2+3*(DO2/10)","v":4.3},null,null,null,null,null,null,null,null,null,{"$f":"AE9+DO2","v":5.3},null,null,null,null,null,null,null,null,{"$f":"AO9+DO2-(DO2/10)","v":6.2},null,null,null,null,null,null,null,null,null,null,null,null,null,null,{"$f":"AX9+DO2+5*(DO2/10)","v":7.7},null,null,null,null,null,null,null,null,null,null,null,{"$f":"BM9+DO2+2*(DO2/10)","v":8.8999999999999986},null,null,null,null,null,null,null,null,{"$f":"BY9+DO2-(DO2/10)","v":9.7999999999999989},null,null,null,null,null,null,null,null,null,null,{"$f":"Q2+(8*DO2)","v":11}]
[]
[]
[]
[null,null,null,null,null,null,null,null,null,null,null,null,null,null,null,null,null,null,null,null,null,null,null,null,null,null,null,null,null,null,null,null,null,null,null,null,null,null,null,null,null,null,null,null,null,null,null,null,null,null,null,null,null,null,null,null,null,null,null,null,null,null,null,null,null,null,null,null,null,null,null,null,null,null,null,null,null,null,null,null,null,null,null,null,null,null,null,null,null,null,null,null,null,null,null,null,null,null,null,null,null,null,null,null,"b",null,"nombre de départ :",null,null,null,null,null,null,null,null,null,null,null,{"$f":"RANDBETWEEN(DV14,DV15)","v":6},null,null,null,null,"liste1a :",1,1,1]
[null,"B",null,null,null,null,null,null,null,null,null,null,null,null,null,null,null,null,null,null,null,null,null,null,null,null,null,null,null,null,null,null,null,null,null,null,{"$f":"IF($DO13<($DO14*4),($DO14*4)+$DO13,$DO13)","v":6},null,null,null,null,null,null,null,null,null,{"$f":"AK14+DO14","v":7},null,null,null,null,null,null,null,null,null,null,null,null,null,null,null,null,null,null,null,null,null,null,null,null,null,null,null,null,null,null,null,null,null,null,null,null,null,null,null,null,null,null,null,null,null,null,null,null,null,null,null,null,null,null,null,null,null,null,null,"incrément :",null,null,null,null,null,null,null,null,null,null,null,{"$f":"INDEX(liste1a,1,INT(RAND()*(4-1)+1))","v":1},{"$f":"INDEX(liste,1,INT(RAND()*(4-1)+1))","v":{"$error":"#NAME?"}},{"$f":"INDEX(liste,1,INT(RAND()*(4-1)+1))","v":{"$error":"#NAME?"}},null,null,"borne inf. :",null,5]
[null,null,null,null,null,null,null,null,null,null,null,null,null,null,null,null,null,null,null,null,null,null,null,null,null,null,null,null,null,null,null,null,null,null,null,null,null,null,null,null,null,null,null,null,null,null,null,null,null,null,null,null,null,null,null,null,null,null,null,null,null,null,null,null,null,null,null,null,null,null,null,null,null,null,null,null,null,null,null,null,null,null,null,null,null,null,null,null,null,null,null,null,null,null,null,null,null,null,null,null,null,null,null,null,null,null,null,null,null,null,null,null,null,null,null,null,null,null,null,null,null,null,null,"borne sup. :",null,10]
[]
[]
[]
[]
[null,null,null,null,null,null,null,null,null,null,null,null,null,null,null,null,null,null,null,null,null,null,null,null,null,null,null,null,null,null,null,null,null,null,null,null,null,null,null,null,null,null,null,null,null,null,null,null,null,null,null,null,null,null,null,null,null,null,null,null,null,null,null,null,null,null,null,null,null,null,null,null,null,null,null,null,null,null,null,null,null,null,null,null,null,null,null,null,null,null,null,null,null,null,null,null,null,null,null,null,null,null,null,"Les valeurs des bornes déterminent le nombre de départ. Veillez à ce que la borne inférieure soit plus petite que la borne supérireure ! Sinon il y aura une erreur…"]
[null,{"$f":"AK14-(4*DO14)+2*(DO14/10)","v":2.2000000000000002},null,null,null,null,null,null,{"$f":"B21+7*(DO14/10)","v":2.9000000000000004},null,null,null,null,null,null,null,null,null,{"$f":"I21+DO14+2*(DO14/10)","v":4.1000000000000005},null,null,null,null,null,null,null,null,{"$f":"AK14-DO14","v":5},null,null,null,null,null,null,null,null,{"$f":"AK14-(DO14/10)","v":5.9},null,null,null,null,null,null,null,null,null,{"$f":"AU14-(DO14/10)","v":6.9},null,null,null,null,null,null,null,null,{"$f":"AU14+8*(DO14/10)","v":7.8},null,null,null,null,null,null,null,null,null,null,null,null,null,null,{"$f":"AU14+2*DO14+3*(DO14/10)","v":9.3000000000000007},null,null,null,null,null,null,null,null,null,null,null,{"$f":"AU14+3*DO14+5*(DO14/10)","v":10.5},null,null,null,null,null,null,null,null,{"$f":"AU14+4*DO14+4*(DO14/10)","v":11.4}]
[]
[]
[]
[null,null,null,null,null,null,null,null,null,null,null,null,null,null,null,null,null,null,null,null,null,null,null,null,null,null,null,null,null,null,null,null,null,null,null,null,null,null,null,null,null,null,null,null,null,null,null,null,null,null,null,null,null,null,null,null,null,null,null,null,null,null,null,null,null,null,null,null,null,null,null,null,null,null,null,null,null,null,null,null,null,null,null,null,null,null,null,null,null,null,null,null,null,null,null,null,null,null,null,null,null,null,null,null,"c",null,"nombre de départ :",null,null,null,null,null,null,null,null,null,null,null,{"$f":"RANDBETWEEN(DV26,DV27)","v":3},null,null,null,null,"liste1b :",0.1,0.1,0.1]
[null,"C",null,null,null,null,null,null,null,null,null,null,null,null,null,null,null,null,null,null,null,null,null,null,null,null,null,null,null,null,null,null,null,null,null,null,null,null,null,null,null,null,null,null,null,null,null,null,null,null,null,null,null,null,null,null,null,null,null,null,null,null,null,null,null,null,{"$f":"IF($DO25<($DO26*7),($DO26*7)+$DO25,$DO25)","v":3},null,null,null,null,null,null,null,null,null,{"$f":"BO26+DO26","v":3.1},null,null,null,null,null,null,null,null,null,null,null,null,null,null,null,null,null,null,null,null,null,null,null,null,null,null,null,null,null,"incrément :",null,null,null,null,null,null,null,null,null,null,null,{"$f":"INDEX(liste1b,1,INT(RAND()*(4-1)+1))","v":0.1},{"$f":"INDEX(liste,1,INT(RAND()*(4-1)+1))","v":{"$error":"#NAME?"}},{"$f":"INDEX(liste,1,INT(RAND()*(4-1)+1))","v":{"$error":"#NAME?"}},null,null,"borne inf. :",null,2]
[null,null,null,null,null,null,null,null,null,null,null,null,null,null,null,null,null,null,null,null,null,null,null,null,null,null,null,null,null,null,null,null,null,null,null,null,null,null,null,null,null,null,null,null,null,null,null,null,null,null,null,null,null,null,null,null,null,null,null,null,null,null,null,null,null,null,null,null,null,null,null,null,null,null,null,null,null,null,null,null,null,null,null,null,null,null,null,null,null,null,null,null,null,null,null,null,null,null,null,null,null,null,null,null,null,null,null,null,null,null,null,null,null,null,null,null,null,null,null,null,null,null,null,"borne sup. :",null,4]
[]
[]
[]
[]
[]
[null,null,{"$f":"BO26-7*DO26+5*(DO26/10)","v":2.3499999999999996},null,null,null,null,null,null,{"$f":"BO26-6*DO26+2*(DO26/10)","v":2.42},null,null,null,null,null,null,null,null,null,null,{"$f":"BO26-5*DO26+3*(DO26/10)","v":2.5299999999999998},null,null,null,null,null,null,null,null,{"$f":"BO26-4*DO26+2*(DO26/10)","v":2.62},null,null,null,null,null,null,null,null,{"$f":"BO26-3*DO26+1*(DO26/10)","v":2.71},null,null,null,null,null,null,null,null,null,{"$f":"BO26-2*DO26+1*(DO26/10)","v":2.8099999999999996},null,null,null,null,null,null,null,null,{"$f":"BO26-DO26","v":2.9},null,null,null,null,null,null,null,null,null,null,null,null,null,null,{"$f":"BO26+5*(DO26/10)","v":3.05},null,null,null,null,null,null,null,null,null,null,null,{"$f":"BY26+7*(DO26/10)","v":3.17},null,null,null,null,null,null,null,null,{"$f":"CG33+9*(DO26/10)","v":3.26}]
[]
[]
[]
[null,null,null,null,null,null,null,null,null,null,null,null,null,null,null,null,null,null,null,null,null,null,null,null,null,null,null,null,null,null,null,null,null,null,null,null,null,null,null,null,null,null,null,null,null,null,null,null,null,null,null,null,null,null,null,null,null,null,null,null,null,null,null,null,null,null,null,null,null,null,null,null,null,null,null,null,null,null,null,null,null,null,null,null,null,null,null,null,null,null,null,null,null,null,null,null,null,null,null,null,null,null,null,null,"d",null,"nombre de départ :",null,null,null,null,null,null,null,null,null,null,null,{"$f":"RANDBETWEEN(DV38,DV39)","v":7},null,null,null,null,"liste1c :",0.1,0.1,0.1]
[null,"D",null,null,null,null,null,null,null,null,null,null,null,null,null,null,null,null,null,null,null,null,null,null,null,null,null,null,null,null,null,null,null,null,null,null,null,null,null,null,null,null,null,null,null,null,{"$f":"IF($DO37<($DO38*5),($DO38*5)+$DO37,$DO37)","v":7},null,null,null,null,null,null,null,null,null,{"$f":"AU38+DO38","v":7.1},null,null,null,null,null,null,null,null,null,null,null,null,null,null,null,null,null,null,null,null,null,null,null,null,null,null,null,null,null,null,null,null,null,null,null,null,null,null,null,null,null,null,null,null,null,null,null,null,null,"incrément :",null,null,null,null,null,null,null,null,null,null,null,{"$f":"INDEX(liste1c,1,INT(RAND()*(4-1)+1))","v":0.1},{"$f":"INDEX(liste,1,INT(RAND()*(4-1)+1))","v":{"$error":"#NAME?"}},{"$f":"INDEX(liste,1,INT(RAND()*(4-1)+1))","v":{"$error":"#NAME?"}},null,null,"borne inf. :",null,7]
[null,null,null,null,null,null,null,null,null,null,null,null,null,null,null,null,null,null,null,null,null,null,null,null,null,null,null,null,null,null,null,null,null,null,null,null,null,null,null,null,null,null,null,null,null,null,null,null,null,null,null,null,null,null,null,null,null,null,null,null,null,null,null,null,null,null,null,null,null,null,null,null,null,null,null,null,null,null,null,null,null,null,null,null,null,null,null,null,null,null,null,null,null,null,null,null,null,null,null,null,null,null,null,null,null,null,null,null,null,null,null,null,null,null,null,null,null,null,null,null,null,null,null,"borne sup. :",null,9]
[]
[]
[]
[]
[]
[null,null,null,{"$f":"AU38-(5*DO38)+6*(DO38/10)","v":6.56},null,null,null,null,null,null,{"$f":"AU38-(4*DO38)+3*(DO38/10)","v":6.63},null,null,null,null,null,null,null,null,null,null,{"$f":"AU38-(3*DO38)+4*(DO38/10)","v":6.74},null,null,null,null,null,null,null,null,{"$f":"AU38-(2*DO38)+3*(DO38/10)","v":6.83},null,null,null,null,null,null,null,null,{"$f":"AU38-(1*DO38)+2*(DO38/10)","v":6.92},null,null,null,null,null,null,null,null,null,{"$f":"AU38+2*(DO38/10)","v":7.02},null,null,null,null,null,null,null,null,{"$f":"BE38+(DO38/10)","v":7.1099999999999994},null,null,null,null,null,null,null,null,null,null,null,null,null,null,{"$f":"BE38+(1*DO38)+6*(DO38/10)","v":7.2599999999999989},null,null,null,null,null,null,null,null,null,null,null,{"$f":"BE38+(2*DO38)+8*(DO38/10)","v":7.38},null,null,null,null,null,null,null,null,null,null,{"$f":"BE38+(3*DO38)+9*(DO38/10)","v":7.4899999999999993}]
[]
[]
[]
[null,null,null,null,null,null,null,null,null,null,null,null,null,null,null,null,null,null,null,null,null,null,null,null,null,null,null,null,null,null,null,null,null,null,null,null,null,null,null,null,null,null,null,null,null,null,null,null,null,null,null,null,null,null,null,null,null,null,null,null,null,null,null,null,null,null,null,null,null,null,null,null,null,null,null,null,null,null,null,null,null,null,null,null,null,null,null,null,null,null,null,null,null,null,null,null,null,null,null,null,null,null,null,null,"e",null,"nombre de départ :",null,null,null,null,null,null,null,null,null,null,null,{"$f":"RANDBETWEEN($DV$50,$DV$51)","v":15},null,null,null,null,"liste2 :",0.01,0.01,0.01]
[null,"E",null,null,null,null,null,null,null,null,null,null,null,null,null,null,{"$f":"IF($DO49<($DO50*2),($DO50*2)+$DO49,$DO49)","v":15},null,null,null,null,null,null,null,null,null,{"$f":"Q50+DO50","v":15.01},null,null,null,null,null,null,null,null,null,null,null,null,null,null,null,null,null,null,null,null,null,null,null,null,null,null,null,null,null,null,null,null,null,null,null,null,null,null,null,null,null,null,null,null,null,null,null,null,null,null,null,null,null,null,null,null,null,null,null,null,null,null,null,null,null,null,null,null,null,null,null,null,null,null,null,null,null,null,null,"incrément :",null,null,null,null,null,null,null,null,null,null,null,{"$f":"INDEX(liste2,1,INT(RAND()*(4-1)+1))","v":0.01},{"$f":"INDEX(liste,1,INT(RAND()*(4-1)+1))","v":{"$error":"#NAME?"}},{"$f":"INDEX(liste,1,INT(RAND()*(4-1)+1))","v":{"$error":"#NAME?"}},null,null,"borne inf. :",null,10]
[null,null,null,null,null,null,null,null,null,null,null,null,null,null,null,null,null,null,null,null,null,null,null,null,null,null,null,null,null,null,null,null,null,null,null,null,null,null,null,null,null,null,null,null,null,null,null,null,null,null,null,null,null,null,null,null,null,null,null,null,null,null,null,null,null,null,null,null,null,null,null,null,null,null,null,null,null,null,null,null,null,null,null,null,null,null,null,null,null,null,null,null,null,null,null,null,null,null,null,null,null,null,null,null,null,null,null,null,null,null,null,null,null,null,null,null,null,null,null,null,null,null,null,"borne sup. :",null,15]
[]
[]
[]
[]
[]
[null,null,null,null,null,null,null,null,null,{"$f":"Q50-(1*DO50)+2*(DO50/10)","v":14.992000000000001},null,null,null,null,null,null,{"$f":"Q50-(DO50/10)","v":14.999000000000001},null,null,null,null,null,null,null,null,null,null,{"$f":"AA50","v":15.01},null,null,null,null,null,null,null,null,{"$f":"AA50+9*(DO50/10)","v":15.019},null,null,null,null,null,null,null,null,{"$f":"AA50+(1*DO50)+8*(DO50/10)","v":15.027999999999999},null,null,null,null,null,null,null,null,null,{"$f":"AA50+(2*DO50)+8*(DO50/10)","v":15.037999999999998},null,null,null,null,null,null,null,null,{"$f":"AA50+(3*DO50)+7*(DO50/10)","v":15.046999999999999},null,null,null,null,null,null,{"$f":"AA50+(4*DO50)+4*(DO50/10)","v":15.053999999999998},null,null,null,null,null,null,null,null,null,null,null,{"$f":"AA50+(5*DO50)+6*(DO50/10)","v":15.066000000000001},null,null,null,null,null,null,null,null,null,null,{"$f":"AA50+(6*DO50)+7*(DO50/10)","v":15.077}]
[]
[null,null,null,null,null,null,null,null,null,null,null,null,null,null,null,null,null,null,null,null,null,null,null,null,null,null,null,null,null,null,null,null,null,null,null,null,null,null,null,null,null,null,null,null,null,null,null,null,null,null,null,null,null,null,null,null,null,null,null,null,null,null,null,null,null,null,null,null,null,null,null,null,null,null,null,null,null,null,null,null,null,null,null,null,null,{"$f":"CH1","v":"Fiche : 817"}]
[null,{"$f":"B2","v":"A"},null,null,null,null,null,null,null,null,null,null,null,null,null,null,3,0,0,0,0,0,0,0,null,null,4,0,0,0,0,0,0,0]
[]
[]
[]
[]
[]
[]
[null,{"$f":"B9","v":1.2},0,0,0,0,0,null,null,null,null,null,2.5,0,0,0,0,0,null,null,null,3.4,0,0,0,0,0,null,null,null,4.3,0,0,0,0,0,null,null,null,null,5.3,0,0,0,0,0,null,null,null,6.2,0,0,0,0,0,null,null,null,null,null,null,null,null,null,{"$f":"BM9","v":7.7},0,0,0,0,0,null,null,null,null,null,null,8.8999999999999986,0,0,0,0,0,null,null,null,9.7999999999999989,0,0,0,0,0,null,null,null,null,null,{"$f":"CS9","v":11},0,0,0,0,0]
[null,0,0,0,0,0,0,null,null,null,null,null,0,0,0,0,0,0,null,null,null,0,0,0,0,0,0,null,null,null,0,0,0,0,0,0,null,null,null,null,0,0,0,0,0,0,null,null,null,0,0,0,0,0,0,null,null,null,null,null,null,null,null,null,0,0,0,0,0,0,null,null,null,null,null,null,0,0,0,0,0,0,null,null,null,0,0,0,0,0,0,null,null,null,null,null,0,0,0,0,0,0]
[]
[]
[]
[null,{"$f":"B14","v":"B"},null,null,null,null,null,null,null,null,null,null,null,null,null,null,null,null,null,null,null,null,null,null,null,null,null,null,null,null,null,null,null,null,null,null,{"$f":"AK14","v":6},0,0,0,0,0,0,0,null,null,7,0,0,0,0,0,0,0]
[]
[]
[]
[]
[]
[]
[null,{"$f":"B21","v":2.2000000000000002},0,0,0,0,0,null,2.9000000000000004,0,0,0,0,0,null,null,null,null,4.1000000000000005,0,0,0,0,0,null,null,null,5,0,0,0,0,0,null,null,null,5.9,0,0,0,0,0,null,null,null,null,6.9,0,0,0,0,0,null,null,null,7.8,0,0,0,0,0,null,null,null,null,null,null,null,null,null,{"$f":"BS21","v":9.3000000000000007},0,0,0,0,0,null,null,null,null,null,null,10.5,0,0,0,0,0,null,null,null,11.4,0,0,0,0,0]
[null,0,0,0,0,0,0,null,0,0,0,0,0,0,null,null,null,null,0,0,0,0,0,0,null,null,null,0,0,0,0,0,0,null,null,null,0,0,0,0,0,0,null,null,null,null,0,0,0,0,0,0,null,null,null,0,0,0,0,0,0,null,null,null,null,null,null,null,null,null,0,0,0,0,0,0,null,null,null,null,null,null,0,0,0,0,0,0,null,null,null,0,0,0,0,0,0]
[]
[]
[]
[null,null,null,null,null,null,null,null,null,null,null,null,null,null,null,null,null,null,null,null,null,null,null,null,null,null,null,null,null,null,null,null,null,null,null,null,null,null,null,null,null,null,null,null,null,null,null,null,null,null,null,null,null,null,null,null,null,null,null,null,null,null,null,null,null,null,{"$f":"BO26","v":3},0,0,0,0,0,0,0,null,null,3.1,0,0,0,0,0,0,0]
[]
[]
[]
[]
[]
[]
[null,null,{"$f":"C33","v":2.3499999999999996},0,0,0,0,0,null,2.42,0,0,0,0,0,null,null,null,null,null,2.5299999999999998,0,0,0,0,0,null,null,null,2.62,0,0,0,0,0,null,null,null,2.71,0,0,0,0,0,null,null,null,null,2.8099999999999996,0,0,0,0,0,null,null,null,2.9,0,0,0,0,0,null,null,null,null,null,null,null,null,null,{"$f":"BU33","v":3.05},0,0,0,0,0,null,null,null,null,null,null,3.17,0,0,0,0,0,null,null,null,3.26,0,0,0,0,0]
[null,null,0,0,0,0,0,0,null,0,0,0,0,0,0,null,null,null,null,null,0,0,0,0,0,0,null,null,null,0,0,0,0,0,0,null,null,null,0,0,0,0,0,0,null,null,null,null,0,0,0,0,0,0,null,null,null,0,0,0,0,0,0,null,null,null,null,null,null,null,null,null,0,0,0,0,0,0,null,null,null,null,null,null,0,0,0,0,0,0,null,null,null,0,0,0,0,0,0]
[]
[]
[]
[null,{"$f":"B38","v":"D"},null,null,null,null,null,null,null,null,null,null,null,null,null,null,null,null,null,null,null,null,null,null,null,null,null,null,null,null,null,null,null,null,null,null,null,null,null,null,null,null,null,null,null,null,{"$f":"AU38","v":7},0,0,0,0,0,0,0,null,null,7.1,0,0,0,0,0,0,0]
[]
[]
[]
[]
[]
[]
[null,null,null,{"$f":"D45","v":6.56},0,0,0,0,0,null,6.63,0,0,0,0,0,null,null,null,null,null,6.74,0,0,0,0,0,null,null,null,6.83,0,0,0,0,0,null,null,null,6.92,0,0,0,0,0,null,null,null,null,7.02,0,0,0,0,0,null,null,null,7.1099999999999994,0,0,0,0,0,null,null,null,null,null,null,null,null,null,{"$f":"BV45","v":7.2599999999999989},0,0,0,0,0,null,null,null,null,null,null,7.38,0,0,0,0,0,null,null,null,null,null,{"$f":"CS45","v":7.4899999999999993},0,0,0,0,0]
[null,null,null,0,0,0,0,0,0,null,0,0,0,0,0,0,null,null,null,null,null,0,0,0,0,0,0,null,null,null,0,0,0,0,0,0,null,null,null,0,0,0,0,0,0,null,null,null,null,0,0,0,0,0,0,null,null,null,0,0,0,0,0,0,null,null,null,null,null,null,null,null,null,0,0,0,0,0,0,null,null,null,null,null,null,0,0,0,0,0,0,null,null,null,null,null,0,0,0,0,0,0]
[]
[]
[]
[null,null,null,null,null,null,null,null,null,null,null,null,null,null,null,null,{"$f":"Q50","v":15},0,0,0,0,0,0,0,null,null,15.01,0,0,0,0,0,0,0]
[]
[]
[]
[]
[]
[]
[null,null,null,null,null,null,null,null,null,{"$f":"J57","v":14.992000000000001},0,0,0,0,0,null,14.999000000000001,0,0,0,0,0,null,null,null,null,null,15.01,0,0,0,0,0,null,null,null,15.019,0,0,0,0,0,null,null,null,15.027999999999999,0,0,0,0,0,null,null,null,null,15.037999999999998,0,0,0,0,0,null,null,null,{"$f":"BM57","v":15.046999999999999},0,0,0,0,0,null,15.053999999999998,0,0,0,0,0,null,null,null,null,null,null,15.066000000000001,0,0,0,0,0,null,null,null,null,null,15.077,0,0,0,0,0]
[null,null,null,null,null,null,null,null,null,0,0,0,0,0,0,null,0,0,0,0,0,0,null,null,null,null,null,0,0,0,0,0,0,null,null,null,0,0,0,0,0,0,null,null,null,0,0,0,0,0,0,null,null,null,null,0,0,0,0,0,0,null,null,null,0,0,0,0,0,0,null,0,0,0,0,0,0,null,null,null,null,null,null,0,0,0,0,0,0,null,null,null,null,null,0,0,0,0,0,0]

{"sheet":"Droites","index":2,"n_rows":125,"n_cols":107,"rows_kept":125,"cut":false,"hidden":false,"merged":[[124,46,124,49],[122,40,122,43],[122,51,122,54],[108,40,108,43],[108,51,108,54],[124,56,124,59],[107,56,107,59],[124,40,124,43],[124,51,124,54],[124,8,124,11],[89,56,89,59],[124,79,124,82],[91,8,91,11],[91,26,91,29],[91,35,91,38],[91,46,91,49],[91,56,91,59],[91,79,91,82],[106,51,106,54],[105,8,105,11],[105,26,105,29],[105,35,105,38],[105,46,105,49],[105,56,105,59],[105,79,105,82],[90,56,90,59],[90,79,90,82],[124,26,124,29],[124,35,124,38],[89,90,89,93],[90,8,90,11],[90,26,90,29],[90,35,90,38],[90,46,90,49],[124,90,124,93],[107,79,107,82],[107,90,107,93],[108,8,108,11],[108,26,108,29],[108,35,108,38],[108,46,108,49],[108,56,108,59],[108,79,108,82],[108,90,108,93],[122,8,122,11],[122,26,122,29],[122,35,122,38],[123,8,123,11],[123,26,123,29],[123,35,123,38],[121,8,121,11],[121,26,121,29],[121,35,121,38],[73,90,73,93],[74,8,74,11],[74,26,74,29],[74,35,74,38],[74,46,74,49],[74,56,74,59],[74,79,74,82],[74,90,74,93],[73,40,73,43],[73,51,73,54],[73,8,73,11],[73,26,73,29],[73,35,73,38],[73,46,73,49],[73,56,73,59],[8,56,8,59],[9,56,9,59],[10,56,10,59],[11,56,11,59],[8,46,8,49],[9,46,9,49],[10,46,10,49],[11,46,11,49],[8,90,8,93],[9,90,9,93],[10,90,10,93],[11,90,11,93],[8,79,8,82],[9,79,9,82],[10,79,10,82],[11,79,11,82],[121,40,121,43],[121,51,121,54],[121,46,121,49],[121,56,121,59],[121,79,121,82],[121,90,121,93],[106,40,106,43],[43,90,43,93],[56,46,56,49],[56,56,56,59],[56,79,56,82],[56,90,56,93],[57,46,57,49],[57,56,57,59],[57,79,57,82],[57,90,57,93],[57,40,57,43],[57,51,57,54],[56,40,56,43],[56,51,56,54],[91,90,91,93],[90,40,90,43],[90,51,90,54],[73,79,73,82],[123,40,123,43],[123,51,123,54],[122,46,122,49],[122,56,122,59],[122,79,122,82],[122,90,122,93],[123,46,123,49],[123,56,123,59],[123,79,123,82],[123,90,123,93],[105,90,105,93],[106,8,106,11],[106,26,106,29],[106,35,106,38],[106,46,106,49],[106,56,106,59],[106,79,106,82],[106,90,106,93],[75,8,75,11],[75,26,75,29],[75,35,75,38],[75,46,75,49],[75,56,75,59],[75,79,75,82],[75,90,75,93],[92,40,92,43],[92,51,92,54],[92,8,92,11],[92,26,92,29],[92,35,92,38],[92,46,92,49],[92,56,92,59],[92,79,92,82],[92,90,92,93],[58,56,58,59],[58,79,58,82],[58,90,58,93],[59,8,59,11],[59,26,59,29],[59,35,59,38],[59,46,59,49],[59,56,59,59],[59,79,59,82],[59,90,59,93],[58,40,58,43],[58,51,58,54],[59,40,59,43],[59,51,59,54],[42,56,42,59],[42,79,42,82],[42,90,42,93],[43,8,43,11],[43,26,43,29],[43,35,43,38],[43,46,43,49],[43,56,43,59],[43,79,43,82],[42,40,42,43],[42,51,42,54],[43,40,43,43],[43,51,43,54],[24,56,24,59],[24,79,24,82],[40,56,40,59],[40,79,40,82],[40,90,40,93],[41,8,41,11],[41,26,41,29],[41,35,41,38],[41,46,41,49],[41,56,41,59],[41,79,41,82],[41,90,41,93],[40,40,40,43],[40,51,40,54],[41,40,41,43],[41,51,41,54],[24,90,24,93],[25,46,25,49],[25,56,25,59],[25,79,25,82],[89,46,89,49],[76,26,76,29],[76,35,76,38],[76,46,76,49],[25,90,25,93],[24,40,24,43],[24,51,24,54],[27,40,27,43],[27,51,27,54],[26,26,26,29],[26,35,26,38],[26,46,26,49],[26,56,26,59],[26,79,26,82],[26,90,26,93],[27,26,27,29],[27,35,27,38],[27,46,27,49],[27,56,27,59],[27,79,27,82],[27,90,27,93],[26,40,26,43],[26,51,26,54],[24,46,24,49],[25,40,25,43],[25,51,25,54],[24,35,24,38],[33,59,33,62],[75,40,75,43],[75,51,75,54],[89,40,89,43],[89,51,89,54],[25,26,25,29],[25,35,25,38],[40,26,40,29],[40,35,40,38],[40,46,40,49],[42,26,42,29],[42,35,42,38],[42,46,42,49],[58,26,58,29],[58,35,58,38],[58,46,58,49],[74,51,74,54],[56,26,56,29],[56,35,56,38],[89,26,89,29],[89,35,89,38],[8,26,8,29],[9,26,9,29],[10,26,10,29],[11,26,11,29],[8,35,8,38],[9,35,9,38],[10,35,10,38],[11,35,11,38],[8,51,8,54],[9,51,9,54],[10,51,10,54],[11,51,11,54],[8,40,8,43],[9,40,9,43],[10,40,10,43],[11,40,11,43],[8,8,8,11],[9,8,9,11],[10,8,10,11],[11,8,11,11],[124,19,124,22],[123,19,123,22],[122,19,122,22],[121,19,121,22],[108,19,108,22],[107,19,107,22],[106,19,106,22],[105,19,105,22],[76,19,76,22],[76,8,76,11],[107,8,107,11],[40,8,40,11],[42,8,42,11],[58,8,58,11],[56,8,56,11],[89,8,89,11],[98,19,98,22],[26,8,26,11],[27,8,27,11],[57,8,57,11],[17,0,17,1],[17,9,17,12],[17,19,17,22],[17,29,17,32],[17,39,17,42],[17,49,17,52],[33,69,33,72],[33,79,33,82],[17,59,17,62],[17,69,17,72],[17,79,17,82],[26,19,26,22],[27,19,27,22],[33,0,33,1],[33,9,33,12],[33,19,33,22],[33,29,33,32],[33,39,33,42],[33,49,33,52],[25,19,25,22],[24,19,24,22],[24,8,24,11],[24,26,24,29],[25,8,25,11],[0,106,0,107],[1,106,1,107],[0,102,0,103],[1,79,1,82],[1,89,1,92],[1,0,1,1],[1,9,1,12],[1,19,1,22],[1,29,1,32],[1,39,1,42],[1,49,1,52],[1,59,1,62],[1,69,1,72],[49,0,49,1],[49,9,49,12],[49,19,49,22],[49,29,49,32],[49,39,49,42],[49,49,49,52],[66,0,66,1],[66,9,66,12],[66,19,66,22],[66,29,66,32],[66,39,66,42],[66,49,66,52],[56,19,56,22],[57,19,57,22],[59,19,59,22],[57,26,57,29],[57,35,57,38],[114,79,114,82],[66,79,66,82],[66,89,66,92],[98,89,98,92],[114,89,114,92],[49,89,49,92],[58,19,58,22],[74,19,74,22],[89,79,89,82],[98,39,98,42],[98,49,98,52],[98,59,98,62],[98,69,98,72],[98,79,98,82],[76,79,76,82],[66,59,66,62],[66,69,66,72],[49,59,49,62],[49,69,49,72],[49,79,49,82],[76,40,76,43],[76,51,76,54],[76,56,76,59],[74,40,74,43],[114,0,114,1],[114,9,114,12],[114,19,114,22],[114,29,114,32],[114,39,114,42],[114,49,114,52],[114,59,114,62],[114,69,114,72],[82,89,82,92],[82,0,82,1],[82,9,82,12],[98,9,98,12],[98,0,98,1],[107,40,107,43],[107,51,107,54],[107,26,107,29],[107,35,107,38],[107,46,107,49],[105,40,105,43],[105,51,105,54],[91,40,91,43],[98,29,98,32],[91,51,91,54],[90,90,90,93],[17,89,17,92],[8,19,8,22],[9,19,9,22],[10,19,10,22],[11,19,11,22],[73,19,73,22],[89,19,89,22],[90,19,90,22],[92,19,92,22],[91,19,91,22],[82,19,82,22],[82,29,82,32],[82,39,82,42],[82,49,82,52],[82,59,82,62],[82,69,82,72],[82,79,82,82],[43,19,43,22],[42,19,42,22],[76,90,76,93],[75,19,75,22],[41,19,41,22],[40,19,40,22],[33,89,33,92]]}
[{"$f":"$CZ$13","v":"A. Complète la droite 514."},null,null,null,null,null,null,null,null,null,null,null,null,null,null,null,null,null,null,null,null,null,null,null,null,null,null,null,null,null,null,null,null,null,null,null,null,null,null,null,null,null,null,null,null,null,null,null,null,null,null,null,null,null,null,null,null,null,null,null,null,null,null,null,null,null,null,null,null,null,null,null,null,null,null,null,null,null,null,null,null,null,null,null,null,null,null,null,null,null,null,null,null,null,null,null,null,null,null,null,null,null,"Nombre de fractions à placer :",null,10,10,"Dénominateur"]
[0,null,null,null,null,null,null,null,null,0.01,null,null,null,null,null,null,null,null,null,0.02,null,null,null,null,null,null,null,null,null,0.03,null,null,null,null,null,null,null,null,null,0.04,null,null,null,null,null,null,null,null,null,0.05,null,null,null,null,null,null,null,null,null,0.06,null,null,null,null,null,null,null,null,null,7.0000000000000007E-2,null,null,null,null,null,null,null,null,null,0.08,null,null,null,null,null,null,null,null,null,0.09,null,null,null,null,null,null,null,null,null,null,null,null,null,null,null,0,"Nombre du départ"]
[]
[]
[]
[]
[]
[]
[null,null,null,null,null,null,null,null,"↑",null,null,null,null,null,null,null,null,null,null,"↑",null,null,null,null,null,null,"↑",null,null,null,null,null,null,null,null,"↑",null,null,null,null,"↑",null,null,null,null,null,"↑",null,null,null,null,"↑",null,null,null,null,"↑",null,null,null,null,null,null,null,null,null,null,null,null,null,null,null,null,null,null,null,null,null,null,"↑",null,null,null,null,null,null,null,null,null,null,"↑"]
[null,null,null,null,null,null,null,null,9,null,null,null,null,null,null,null,null,null,null,20,null,null,null,null,null,null,27,null,null,null,null,null,null,null,null,36,null,null,null,null,41,null,null,null,null,null,47,null,null,null,null,52,null,null,null,null,57,null,null,null,null,null,null,null,null,null,null,null,null,null,null,null,null,null,null,null,null,null,null,80,null,null,null,null,null,null,null,null,null,null,91,null,null,null,null,null,null,null,null,null,null,null,null,null,null,"La droite sera graduée en millièmes."]
[null,null,null,null,null,null,null,null,1000,null,null,null,null,null,null,null,null,null,null,1000,null,null,null,null,null,null,1000,null,null,null,null,null,null,null,null,1000,null,null,null,null,1000,null,null,null,null,null,1000,null,null,null,null,1000,null,null,null,null,1000,null,null,null,null,null,null,null,null,null,null,null,null,null,null,null,null,null,null,null,null,null,null,1000,null,null,null,null,null,null,null,null,null,null,1000]
[null,null,null,null,null,null,null,null,8.9999999999999993E-3,null,null,null,null,null,null,null,null,null,null,0.02,null,null,null,null,null,null,2.7E-2,null,null,null,null,null,null,null,null,3.5999999999999997E-2,null,null,null,null,4.1000000000000002E-2,null,null,null,null,null,4.7E-2,null,null,null,null,5.1999999999999998E-2,null,null,null,null,5.7000000000000002E-2,null,null,null,null,null,null,null,null,null,null,null,null,null,null,null,null,null,null,null,null,null,null,0.08,null,null,null,null,null,null,null,null,null,null,9.0999999999999998E-2]
[null,null,null,null,null,null,null,null,null,null,null,null,null,null,null,null,null,null,null,null,null,null,null,null,null,null,null,null,null,null,null,null,null,null,null,null,null,null,null,null,null,null,null,null,null,null,null,null,null,null,null,null,null,null,null,null,null,null,null,null,null,null,null,null,null,null,null,null,null,null,null,null,null,null,null,null,null,null,null,null,null,null,null,null,null,null,null,null,null,null,null,null,null,null,null,null,null,null,null,null,null,null,null,{"$f":" CONCATENATE(\"A. Complète la droite \", RANDBETWEEN(100,999),\".\")","v":"A. Complète la droite 514."}]
[]
[]
[]
[{"$f":"$CZ$13","v":"A. Complète la droite 514."}]
[0,null,null,null,null,null,null,null,null,0.01,null,null,null,null,null,null,null,null,null,0.02,null,null,null,null,null,null,null,null,null,0.03,null,null,null,null,null,null,null,null,null,0.04,null,null,null,null,null,null,null,null,null,0.05,null,null,null,null,null,null,null,null,null,0.06,null,null,null,null,null,null,null,null,null,7.0000000000000007E-2,null,null,null,null,null,null,null,null,null,0.08,null,null,null,null,null,null,null,null,null,0.09]
[]
[]
[]
[]
[]
[]
[null,null,null,null,null,null,null,null,"↑",null,null,null,null,null,null,null,null,null,null,"↑",null,null,null,null,null,null,"↑",null,null,null,null,null,null,null,null,"↑",null,null,null,null,"↑",null,null,null,null,null,"↑",null,null,null,null,"↑",null,null,null,null,"↑",null,null,null,null,null,null,null,null,null,null,null,null,null,null,null,null,null,null,null,null,null,null,"↑",null,null,null,null,null,null,null,null,null,null,"↑"]
[null,null,null,null,null,null,null,null,9,null,null,null,null,null,null,null,null,null,null,20,null,null,null,null,null,null,27,null,null,null,null,null,null,null,null,36,null,null,null,null,41,null,null,null,null,null,47,null,null,null,null,52,null,null,null,null,57,null,null,null,null,null,null,null,null,null,null,null,null,null,null,null,null,null,null,null,null,null,null,80,null,null,null,null,null,null,null,null,null,null,91]
[null,null,null,null,null,null,null,null,1000,null,null,null,null,null,null,null,null,null,null,1000,null,null,null,null,null,null,1000,null,null,null,null,null,null,null,null,1000,null,null,null,null,1000,null,null,null,null,null,1000,null,null,null,null,1000,null,null,null,null,1000,null,null,null,null,null,null,null,null,null,null,null,null,null,null,null,null,null,null,null,null,null,null,1000,null,null,null,null,null,null,null,null,null,null,1000]
[null,null,null,null,null,null,null,null,8.9999999999999993E-3,null,null,null,null,null,null,null,null,null,null,0.02,null,null,null,null,null,null,2.7E-2,null,null,null,null,null,null,null,null,3.5999999999999997E-2,null,null,null,null,4.1000000000000002E-2,null,null,null,null,null,4.7E-2,null,null,null,null,5.1999999999999998E-2,null,null,null,null,5.7000000000000002E-2,null,null,null,null,null,null,null,null,null,null,null,null,null,null,null,null,null,null,null,null,null,null,0.08,null,null,null,null,null,null,null,null,null,null,9.0999999999999998E-2]
[]
[]
[]
[]
[{"$f":"$CZ$13","v":"A. Complète la droite 514."}]
[0,null,null,null,null,null,null,null,null,0.01,null,null,null,null,null,null,null,null,null,0.02,null,null,null,null,null,null,null,null,null,0.03,null,null,null,null,null,null,null,null,null,0.04,null,null,null,null,null,null,null,null,null,0.05,null,null,null,null,null,null,null,null,null,0.06,null,null,null,null,null,null,null,null,null,7.0000000000000007E-2,null,null,null,null,null,null,null,null,null,0.08,null,null,null,null,null,null,null,null,null,0.09]
[]
[]
[]
[]
[]
[]
[null,null,null,null,null,null,null,null,"↑",null,null,null,null,null,null,null,null,null,null,"↑",null,null,null,null,null,null,"↑",null,null,null,null,null,null,null,null,"↑",null,null,null,null,"↑",null,null,null,null,null,"↑",null,null,null,null,"↑",null,null,null,null,"↑",null,null,null,null,null,null,null,null,null,null,null,null,null,null,null,null,null,null,null,null,null,null,"↑",null,null,null,null,null,null,null,null,null,null,"↑"]
[null,null,null,null,null,null,null,null,9,null,null,null,null,null,null,null,null,null,null,20,null,null,null,null,null,null,27,null,null,null,null,null,null,null,null,36,null,null,null,null,41,null,null,null,null,null,47,null,null,null,null,52,null,null,null,null,57,null,null,null,null,null,null,null,null,null,null,null,null,null,null,null,null,null,null,null,null,null,null,80,null,null,null,null,null,null,null,null,null,null,91]
[null,null,null,null,null,null,null,null,1000,null,null,null,null,null,null,null,null,null,null,1000,null,null,null,null,null,null,1000,null,null,null,null,null,null,null,null,1000,null,null,null,null,1000,null,null,null,null,null,1000,null,null,null,null,1000,null,null,null,null,1000,null,null,null,null,null,null,null,null,null,null,null,null,null,null,null,null,null,null,null,null,null,null,1000,null,null,null,null,null,null,null,null,null,null,1000]
[null,null,null,null,null,null,null,null,8.9999999999999993E-3,null,null,null,null,null,null,null,null,null,null,0.02,null,null,null,null,null,null,2.7E-2,null,null,null,null,null,null,null,null,3.5999999999999997E-2,null,null,null,null,4.1000000000000002E-2,null,null,null,null,null,4.7E-2,null,null,null,null,5.1999999999999998E-2,null,null,null,null,5.7000000000000002E-2,null,null,null,null,null,null,null,null,null,null,null,null,null,null,null,null,null,null,null,null,null,null,0.08,null,null,null,null,null,null,null,null,null,null,9.0999999999999998E-2]
[]
[]
[]
[]
[{"$f":"$CZ$13","v":"A. Complète la droite 514."}]
[0,null,null,null,null,null,null,null,null,0.01,null,null,null,null,null,null,null,null,null,0.02,null,null,null,null,null,null,null,null,null,0.03,null,null,null,null,null,null,null,null,null,0.04,null,null,null,null,null,null,null,null,null,0.05,null,null,null,null,null,null,null,null,null,0.06,null,null,null,null,null,null,null,null,null,7.0000000000000007E-2,null,null,null,null,null,null,null,null,null,0.08,null,null,null,null,null,null,null,null,null,0.09]
[]
[]
[]
[]
[]
[]
[null,null,null,null,null,null,null,null,"↑",null,null,null,null,null,null,null,null,null,null,"↑",null,null,null,null,null,null,"↑",null,null,null,null,null,null,null,null,"↑",null,null,null,null,"↑",null,null,null,null,null,"↑",null,null,null,null,"↑",null,null,null,null,"↑",null,null,null,null,null,null,null,null,null,null,null,null,null,null,null,null,null,null,null,null,null,null,"↑",null,null,null,null,null,null,null,null,null,null,"↑"]
[null,null,null,null,null,null,null,null,9,null,null,null,null,null,null,null,null,null,null,20,null,null,null,null,null,null,27,null,null,null,null,null,null,null,null,36,null,null,null,null,41,null,null,null,null,null,47,null,null,null,null,52,null,null,null,null,57,null,null,null,null,null,null,null,null,null,null,null,null,null,null,null,null,null,null,null,null,null,null,80,null,null,null,null,null,null,null,null,null,null,91]
[null,null,null,null,null,null,null,null,1000,null,null,null,null,null,null,null,null,null,null,1000,null,null,null,null,null,null,1000,null,null,null,null,null,null,null,null,1000,null,null,null,null,1000,null,null,null,null,null,1000,null,null,null,null,1000,null,null,null,null,1000,null,null,null,null,null,null,null,null,null,null,null,null,null,null,null,null,null,null,null,null,null,null,1000,null,null,null,null,null,null,null,null,null,null,1000]
[null,null,null,null,null,null,null,null,8.9999999999999993E-3,null,null,null,null,null,null,null,null,null,null,0.02,null,null,null,null,null,null,2.7E-2,null,null,null,null,null,null,null,null,3.5999999999999997E-2,null,null,null,null,4.1000000000000002E-2,null,null,null,null,null,4.7E-2,null,null,null,null,5.1999999999999998E-2,null,null,null,null,5.7000000000000002E-2,null,null,null,null,null,null,null,null,null,null,null,null,null,null,null,null,null,null,null,null,null,null,0.08,null,null,null,null,null,null,null,null,null,null,9.0999999999999998E-2]
[]
[]
[]
[]
[]
[{"$f":"$CZ$13","v":"A. Complète la droite 514."}]
[0,null,null,null,null,null,null,null,null,0.01,null,null,null,null,null,null,null,null,null,0.02,null,null,null,null,null,null,null,null,null,0.03,null,null,null,null,null,null,null,null,null,0.04,null,null,null,null,null,null,null,null,null,0.05,null,null,null,null,null,null,null,null,null,0.06,null,null,null,null,null,null,null,null,null,7.0000000000000007E-2,null,null,null,null,null,null,null,null,null,0.08,null,null,null,null,null,null,null,null,null,0.09]
[]
[]
[]
[]
[]
[]
[null,null,null,null,null,null,null,null,"↑",null,null,null,null,null,null,null,null,null,null,"↑",null,null,null,null,null,null,"↑",null,null,null,null,null,null,null,null,"↑",null,null,null,null,"↑",null,null,null,null,null,"↑",null,null,null,null,"↑",null,null,null,null,"↑",null,null,null,null,null,null,null,null,null,null,null,null,null,null,null,null,null,null,null,null,null,null,"↑",null,null,null,null,null,null,null,null,null,null,"↑"]
[null,null,null,null,null,null,null,null,9,null,null,null,null,null,null,null,null,null,null,20,null,null,null,null,null,null,27,null,null,null,null,null,null,null,null,36,null,null,null,null,41,null,null,null,null,null,47,null,null,null,null,52,null,null,null,null,57,null,null,null,null,null,null,null,null,null,null,null,null,null,null,null,null,null,null,null,null,null,null,80,null,null,null,null,null,null,null,null,null,null,91]
[null,null,null,null,null,null,null,null,1000,null,null,null,null,null,null,null,null,null,null,1000,null,null,null,null,null,null,1000,null,null,null,null,null,null,null,null,1000,null,null,null,null,1000,null,null,null,null,null,1000,null,null,null,null,1000,null,null,null,null,1000,null,null,null,null,null,null,null,null,null,null,null,null,null,null,null,null,null,null,null,null,null,null,1000,null,null,null,null,null,null,null,null,null,null,1000]
[null,null,null,null,null,null,null,null,8.9999999999999993E-3,null,null,null,null,null,null,null,null,null,null,0.02,null,null,null,null,null,null,2.7E-2,null,null,null,null,null,null,null,null,3.5999999999999997E-2,null,null,null,null,4.1000000000000002E-2,null,null,null,null,null,4.7E-2,null,null,null,null,5.1999999999999998E-2,null,null,null,null,5.7000000000000002E-2,null,null,null,null,null,null,null,null,null,null,null,null,null,null,null,null,null,null,null,null,null,null,0.08,null,null,null,null,null,null,null,null,null,null,9.0999999999999998E-2]
[]
[]
[]
[]
[{"$f":"$CZ$13","v":"A. Complète la droite 514."}]
[0,null,null,null,null,null,null,null,null,0.01,null,null,null,null,null,null,null,null,null,0.02,null,null,null,null,null,null,null,null,null,0.03,null,null,null,null,null,null,null,null,null,0.04,null,null,null,null,null,null,null,null,null,0.05,null,null,null,null,null,null,null,null,null,0.06,null,null,null,null,null,null,null,null,null,7.0000000000000007E-2,null,null,null,null,null,null,null,null,null,0.08,null,null,null,null,null,null,null,null,null,0.09]
[]
[]
[]
[]
[]
[]
[null,null,null,null,null,null,null,null,"↑",null,null,null,null,null,null,null,null,null,null,"↑",null,null,null,null,null,null,"↑",null,null,null,null,null,null,null,null,"↑",null,null,null,null,"↑",null,null,null,null,null,"↑",null,null,null,null,"↑",null,null,null,null,"↑",null,null,null,null,null,null,null,null,null,null,null,null,null,null,null,null,null,null,null,null,null,null,"↑",null,null,null,null,null,null,null,null,null,null,"↑"]
[null,null,null,null,null,null,null,null,9,null,null,null,null,null,null,null,null,null,null,20,null,null,null,null,null,null,27,null,null,null,null,null,null,null,null,36,null,null,null,null,41,null,null,null,null,null,47,null,null,null,null,52,null,null,null,null,57,null,null,null,null,null,null,null,null,null,null,null,null,null,null,null,null,null,null,null,null,null,null,80,null,null,null,null,null,null,null,null,null,null,91]
[null,null,null,null,null,null,null,null,1000,null,null,null,null,null,null,null,null,null,null,1000,null,null,null,null,null,null,1000,null,null,null,null,null,null,null,null,1000,null,null,null,null,1000,null,null,null,null,null,1000,null,null,null,null,1000,null,null,null,null,1000,null,null,null,null,null,null,null,null,null,null,null,null,null,null,null,null,null,null,null,null,null,null,1000,null,null,null,null,null,null,null,null,null,null,1000]
[null,null,null,null,null,null,null,null,8.9999999999999993E-3,null,null,null,null,null,null,null,null,null,null,0.02,null,null,null,null,null,null,2.7E-2,null,null,null,null,null,null,null,null,3.5999999999999997E-2,null,null,null,null,4.1000000000000002E-2,null,null,null,null,null,4.7E-2,null,null,null,null,5.1999999999999998E-2,null,null,null,null,5.7000000000000002E-2,null,null,null,null,null,null,null,null,null,null,null,null,null,null,null,null,null,null,null,null,null,null,0.08,null,null,null,null,null,null,null,null,null,null,9.0999999999999998E-2]
[]
[]
[]
[]
[{"$f":"$CZ$13","v":"A. Complète la droite 514."}]
[0,null,null,null,null,null,null,null,null,0.01,null,null,null,null,null,null,null,null,null,0.02,null,null,null,null,null,null,null,null,null,0.03,null,null,null,null,null,null,null,null,null,0.04,null,null,null,null,null,null,null,null,null,0.05,null,null,null,null,null,null,null,null,null,0.06,null,null,null,null,null,null,null,null,null,7.0000000000000007E-2,null,null,null,null,null,null,null,null,null,0.08,null,null,null,null,null,null,null,null,null,0.09]
[]
[]
[]
[]
[]
[]
[null,null,null,null,null,null,null,null,"↑",null,null,null,null,null,null,null,null,null,null,"↑",null,null,null,null,null,null,"↑",null,null,null,null,null,null,null,null,"↑",null,null,null,null,"↑",null,null,null,null,null,"↑",null,null,null,null,"↑",null,null,null,null,"↑",null,null,null,null,null,null,null,null,null,null,null,null,null,null,null,null,null,null,null,null,null,null,"↑",null,null,null,null,null,null,null,null,null,null,"↑"]
[null,null,null,null,null,null,null,null,9,null,null,null,null,null,null,null,null,null,null,20,null,null,null,null,null,null,27,null,null,null,null,null,null,null,null,36,null,null,null,null,41,null,null,null,null,null,47,null,null,null,null,52,null,null,null,null,57,null,null,null,null,null,null,null,null,null,null,null,null,null,null,null,null,null,null,null,null,null,null,80,null,null,null,null,null,null,null,null,null,null,91]
[null,null,null,null,null,null,null,null,1000,null,null,null,null,null,null,null,null,null,null,1000,null,null,null,null,null,null,1000,null,null,null,null,null,null,null,null,1000,null,null,null,null,1000,null,null,null,null,null,1000,null,null,null,null,1000,null,null,null,null,1000,null,null,null,null,null,null,null,null,null,null,null,null,null,null,null,null,null,null,null,null,null,null,1000,null,null,null,null,null,null,null,null,null,null,1000]
[null,null,null,null,null,null,null,null,8.9999999999999993E-3,null,null,null,null,null,null,null,null,null,null,0.02,null,null,null,null,null,null,2.7E-2,null,null,null,null,null,null,null,null,3.5999999999999997E-2,null,null,null,null,4.1000000000000002E-2,null,null,null,null,null,4.7E-2,null,null,null,null,5.1999999999999998E-2,null,null,null,null,5.7000000000000002E-2,null,null,null,null,null,null,null,null,null,null,null,null,null,null,null,null,null,null,null,null,null,null,0.08,null,null,null,null,null,null,null,null,null,null,9.0999999999999998E-2]
[]
[]
[]
[]
[{"$f":"$CZ$13","v":"A. Complète la droite 514."}]
[0,null,null,null,null,null,null,null,null,0.01,null,null,null,null,null,null,null,null,null,0.02,null,null,null,null,null,null,null,null,null,0.03,null,null,null,null,null,null,null,null,null,0.04,null,null,null,null,null,null,null,null,null,0.05,null,null,null,null,null,null,null,null,null,0.06,null,null,null,null,null,null,null,null,null,7.0000000000000007E-2,null,null,null,null,null,null,null,null,null,0.08,null,null,null,null,null,null,null,null,null,0.09]
[]
[]
[]
[]
[]
[]
[null,null,null,null,null,null,null,null,"↑",null,null,null,null,null,null,null,null,null,null,"↑",null,null,null,null,null,null,"↑",null,null,null,null,null,null,null,null,"↑",null,null,null,null,"↑",null,null,null,null,null,"↑",null,null,null,null,"↑",null,null,null,null,"↑",null,null,null,null,null,null,null,null,null,null,null,null,null,null,null,null,null,null,null,null,null,null,"↑",null,null,null,null,null,null,null,null,null,null,"↑"]
[null,null,null,null,null,null,null,null,9,null,null,null,null,null,null,null,null,null,null,20,null,null,null,null,null,null,27,null,null,null,null,null,null,null,null,36,null,null,null,null,41,null,null,null,null,null,47,null,null,null,null,52,null,null,null,null,57,null,null,null,null,null,null,null,null,null,null,null,null,null,null,null,null,null,null,null,null,null,null,80,null,null,null,null,null,null,null,null,null,null,91]
[null,null,null,null,null,null,null,null,1000,null,null,null,null,null,null,null,null,null,null,1000,null,null,null,null,null,null,1000,null,null,null,null,null,null,null,null,1000,null,null,null,null,1000,null,null,null,null,null,1000,null,null,null,null,1000,null,null,null,null,1000,null,null,null,null,null,null,null,null,null,null,null,null,null,null,null,null,null,null,null,null,null,null,1000,null,null,null,null,null,null,null,null,null,null,1000]
[null,null,null,null,null,null,null,null,8.9999999999999993E-3,null,null,null,null,null,null,null,null,null,null,0.02,null,null,null,null,null,null,2.7E-2,null,null,null,null,null,null,null,null,3.5999999999999997E-2,null,null,null,null,4.1000000000000002E-2,null,null,null,null,null,4.7E-2,null,null,null,null,5.1999999999999998E-2,null,null,null,null,5.7000000000000002E-2,null,null,null,null,null,null,null,null,null,null,null,null,null,null,null,null,null,null,null,null,null,null,0.08,null,null,null,null,null,null,null,null,null,null,9.0999999999999998E-2]

{"sheet":"4DroitesDiff","index":3,"n_rows":125,"n_cols":107,"rows_kept":125,"cut":false,"hidden":false,"merged":[[124,6,124,9],[107,26,107,29],[108,26,108,29],[56,6,56,9],[57,6,57,9],[58,6,58,9],[59,6,59,9],[121,6,121,9],[122,6,122,9],[123,6,123,9],[8,42,8,45],[9,42,9,45],[10,42,10,45],[11,42,11,45],[8,73,8,76],[9,73,9,76],[10,73,10,76],[11,73,11,76],[73,42,73,45],[73,73,73,76],[74,42,74,45],[74,73,74,76],[75,42,75,45],[75,73,75,76],[76,42,76,45],[24,16,24,19],[25,16,25,19],[26,16,26,19],[27,16,27,19],[89,16,89,19],[40,26,40,29],[41,26,41,29],[42,26,42,29],[43,26,43,29],[124,17,124,20],[8,31,8,34],[9,31,9,34],[10,31,10,34],[11,31,11,34],[73,31,73,34],[121,17,121,20],[122,17,122,20],[123,17,123,20],[89,58,89,61],[90,16,90,19],[90,58,90,61],[91,16,91,19],[91,58,91,61],[56,17,56,20],[57,17,57,20],[58,17,58,20],[59,17,59,20],[74,31,74,34],[75,31,75,34],[76,31,76,34],[124,85,124,88],[56,85,56,88],[57,85,57,88],[58,85,58,88],[59,85,59,88],[121,85,121,88],[122,85,122,88],[123,85,123,88],[40,50,40,53],[41,50,41,53],[42,50,42,53],[24,58,24,61],[25,58,25,61],[26,58,26,61],[27,58,27,61],[40,36,40,39],[41,36,41,39],[42,36,42,39],[43,36,43,39],[105,36,105,39],[106,36,106,39],[107,36,107,39],[108,36,108,39],[105,50,105,53],[106,50,106,53],[107,50,107,53],[108,50,108,53],[43,50,43,53],[89,67,89,70],[90,67,90,70],[24,67,24,70],[25,67,25,70],[26,67,26,70],[27,67,27,70],[105,26,105,29],[106,26,106,29],[75,63,75,66],[76,63,76,66],[73,63,73,66],[8,63,8,66],[9,63,9,66],[10,63,10,66],[11,63,11,66],[74,63,74,66],[106,97,106,100],[107,97,107,100],[108,97,108,100],[40,97,40,100],[41,97,41,100],[42,97,42,100],[43,97,43,100],[105,97,105,100],[91,67,91,70],[124,44,124,47],[56,44,56,47],[57,44,57,47],[58,44,58,47],[59,44,59,47],[105,20,105,23],[106,20,106,23],[121,91,121,94],[122,91,122,94],[123,91,123,94],[121,44,121,47],[122,44,122,47],[123,44,123,47],[56,91,56,94],[57,91,57,94],[58,91,58,94],[59,91,59,94],[40,20,40,23],[41,20,41,23],[42,20,42,23],[43,20,43,23],[92,67,92,70],[76,73,76,76],[74,53,74,56],[75,53,75,56],[76,53,76,56],[8,53,8,56],[9,53,9,56],[10,53,10,56],[11,53,11,56],[73,53,73,56],[124,91,124,94],[91,2,91,5],[92,2,92,5],[92,16,92,19],[92,58,92,61],[89,2,89,5],[24,2,24,5],[25,2,25,5],[26,2,26,5],[27,2,27,5],[1,79,1,82],[1,89,1,92],[17,69,17,72],[17,79,17,82],[17,89,17,92],[1,106,1,107],[0,102,0,103],[0,106,0,107],[1,0,1,1],[1,9,1,12],[1,19,1,22],[1,29,1,32],[1,39,1,42],[1,49,1,52],[1,59,1,62],[1,69,1,72],[33,0,33,1],[33,9,33,12],[33,19,33,22],[33,29,33,32],[33,39,33,42],[33,49,33,52],[33,59,33,62],[33,69,33,72],[17,0,17,1],[17,9,17,12],[17,19,17,22],[17,29,17,32],[17,39,17,42],[17,49,17,52],[17,59,17,62],[49,0,49,1],[49,9,49,12],[49,19,49,22],[49,29,49,32],[49,39,49,42],[49,49,49,52],[49,59,49,62],[49,69,49,72],[49,79,49,82],[66,0,66,1],[66,9,66,12],[66,19,66,22],[66,29,66,32],[66,39,66,42],[66,49,66,52],[66,59,66,62],[66,69,66,72],[66,79,66,82],[98,0,98,1],[98,9,98,12],[98,19,98,22],[98,29,98,32],[98,39,98,42],[98,49,98,52],[98,59,98,62],[82,0,82,1],[82,9,82,12],[82,19,82,22],[82,29,82,32],[82,39,82,42],[82,49,82,52],[82,59,82,62],[90,2,90,5],[114,0,114,1],[114,9,114,12],[114,19,114,22],[114,29,114,32],[114,39,114,42],[114,49,114,52],[114,59,114,62],[107,20,107,23],[108,20,108,23],[48,106,48,107],[49,106,49,107],[16,102,16,103],[16,106,16,107],[17,106,17,107],[32,102,32,103],[32,106,32,107],[33,106,33,107],[48,102,48,103],[33,79,33,82],[33,89,33,92],[49,89,49,92],[66,89,66,92],[82,89,82,92],[82,69,82,72],[82,79,82,82],[98,69,98,72],[114,89,114,92],[98,89,98,92],[114,69,114,72],[114,79,114,82],[98,79,98,82],[24,86,24,89],[25,86,25,89],[26,86,26,89],[27,86,27,89],[92,86,92,89],[89,86,89,89],[90,86,90,89],[91,86,91,89]]}
["A",null,null,null,null,null,null,null,null,null,null,null,null,null,null,null,null,null,null,null,null,null,null,null,null,null,null,null,null,null,null,null,null,null,null,null,null,null,null,null,null,null,null,null,null,null,null,null,null,null,null,null,null,null,null,null,null,null,null,null,null,null,null,null,null,null,null,null,null,null,null,null,null,null,null,null,null,null,null,null,null,null,null,null,null,null,null,null,null,null,null,null,null,null,null,null,null,null,null,null,null,null,"Nombre de fractions :",null,5,10,"Dénominateur"]
[0,null,null,null,null,null,null,null,null,0.01,null,null,null,null,null,null,null,null,null,0.02,null,null,null,null,null,null,null,null,null,0.03,null,null,null,null,null,null,null,null,null,0.04,null,null,null,null,null,null,null,null,null,0.05,null,null,null,null,null,null,null,null,null,0.06,null,null,null,null,null,null,null,null,null,7.0000000000000007E-2,null,null,null,null,null,null,null,null,null,0.08,null,null,null,null,null,null,null,null,null,0.09,null,null,null,null,null,null,null,null,null,null,null,null,null,null,null,0,"Nombre du départ"]
[]
[]
[]
[]
[]
[]
[null,null,null,null,null,null,null,null,null,null,null,null,null,null,null,null,null,null,null,null,null,null,null,null,null,null,null,null,null,null,null,"↑",null,null,null,null,null,null,null,null,null,null,"↑",null,null,null,null,null,null,null,null,null,null,"↑",null,null,null,null,null,null,null,null,null,"↑",null,null,null,null,null,null,null,null,null,"↑"]
[null,null,null,null,null,null,null,null,null,null,null,null,null,null,null,null,null,null,null,null,null,null,null,null,null,null,null,null,null,null,null,32,null,null,null,null,null,null,null,null,null,null,43,null,null,null,null,null,null,null,null,null,null,54,null,null,null,null,null,null,null,null,null,64,null,null,null,null,null,null,null,null,null,74,null,null,null,null,null,null,null,null,null,null,null,null,null,null,null,null,null,null,null,null,null,null,null,null,null,null,null,null,null,null,null,"La droite sera graduée en dixièmes."]
[null,null,null,null,null,null,null,null,null,null,null,null,null,null,null,null,null,null,null,null,null,null,null,null,null,null,null,null,null,null,null,1000,null,null,null,null,null,null,null,null,null,null,1000,null,null,null,null,null,null,null,null,null,null,1000,null,null,null,null,null,null,null,null,null,1000,null,null,null,null,null,null,null,null,null,1000]
[null,null,null,null,null,null,null,null,null,null,null,null,null,null,null,null,null,null,null,null,null,null,null,null,null,null,null,null,null,null,null,3.2000000000000001E-2,null,null,null,null,null,null,null,null,null,null,4.2999999999999997E-2,null,null,null,null,null,null,null,null,null,null,5.3999999999999999E-2,null,null,null,null,null,null,null,null,null,6.4000000000000001E-2,null,null,null,null,null,null,null,null,null,7.3999999999999996E-2]
[]
[]
[]
[]
["B",null,null,null,null,null,null,null,null,null,null,null,null,null,null,null,null,null,null,null,null,null,null,null,null,null,null,null,null,null,null,null,null,null,null,null,null,null,null,null,null,null,null,null,null,null,null,null,null,null,null,null,null,null,null,null,null,null,null,null,null,null,null,null,null,null,null,null,null,null,null,null,null,null,null,null,null,null,null,null,null,null,null,null,null,null,null,null,null,null,null,null,null,null,null,null,null,null,null,null,null,null,"Nombre de fractions :",null,5,10,"Dénominateur"]
[0,null,null,null,null,null,null,null,null,0.01,null,null,null,null,null,null,null,null,null,0.02,null,null,null,null,null,null,null,null,null,0.03,null,null,null,null,null,null,null,null,null,0.04,null,null,null,null,null,null,null,null,null,0.05,null,null,null,null,null,null,null,null,null,0.06,null,null,null,null,null,null,null,null,null,7.0000000000000007E-2,null,null,null,null,null,null,null,null,null,0.08,null,null,null,null,null,null,null,null,null,0.09,null,null,null,null,null,null,null,null,null,null,null,null,null,null,null,0,"Nombre du départ"]
[]
[]
[]
[]
[]
[]
[null,null,"↑",null,null,null,null,null,null,null,null,null,null,null,null,null,"↑",null,null,null,null,null,null,null,null,null,null,null,null,null,null,null,null,null,null,null,null,null,null,null,null,null,null,null,null,null,null,null,null,null,null,null,null,null,null,null,null,null,"↑",null,null,null,null,null,null,null,null,"↑",null,null,null,null,null,null,null,null,null,null,null,null,null,null,null,null,null,null,"↑"]
[null,null,3,null,null,null,null,null,null,null,null,null,null,null,null,null,17,null,null,null,null,null,null,null,null,null,null,null,null,null,null,null,null,null,null,null,null,null,null,null,null,null,null,null,null,null,null,null,null,null,null,null,null,null,null,null,null,null,59,null,null,null,null,null,null,null,null,68,null,null,null,null,null,null,null,null,null,null,null,null,null,null,null,null,null,null,87,null,null,null,null,null,null,null,null,null,null,null,null,null,null,null,null,null,null,"La droite sera graduée en millièmes."]
[null,null,1000,null,null,null,null,null,null,null,null,null,null,null,null,null,1000,null,null,null,null,null,null,null,null,null,null,null,null,null,null,null,null,null,null,null,null,null,null,null,null,null,null,null,null,null,null,null,null,null,null,null,null,null,null,null,null,null,1000,null,null,null,null,null,null,null,null,1000,null,null,null,null,null,null,null,null,null,null,null,null,null,null,null,null,null,null,1000]
[null,null,3.0000000000000001E-3,null,null,null,null,null,null,null,null,null,null,null,null,null,1.7000000000000001E-2,null,null,null,null,null,null,null,null,null,null,null,null,null,null,null,null,null,null,null,null,null,null,null,null,null,null,null,null,null,null,null,null,null,null,null,null,null,null,null,null,null,5.8999999999999997E-2,null,null,null,null,null,null,null,null,6.8000000000000005E-2,null,null,null,null,null,null,null,null,null,null,null,null,null,null,null,null,null,null,8.6999999999999994E-2]
[]
[]
[]
[]
["C",null,null,null,null,null,null,null,null,null,null,null,null,null,null,null,null,null,null,null,null,null,null,null,null,null,null,null,null,null,null,null,null,null,null,null,null,null,null,null,null,null,null,null,null,null,null,null,null,null,null,null,null,null,null,null,null,null,null,null,null,null,null,null,null,null,null,null,null,null,null,null,null,null,null,null,null,null,null,null,null,null,null,null,null,null,null,null,null,null,null,null,null,null,null,null,null,null,null,null,null,null,"Nombre de fractions :",null,5,10,"Dénominateur"]
[0,null,null,null,null,null,null,null,null,0.01,null,null,null,null,null,null,null,null,null,0.02,null,null,null,null,null,null,null,null,null,0.03,null,null,null,null,null,null,null,null,null,0.04,null,null,null,null,null,null,null,null,null,0.05,null,null,null,null,null,null,null,null,null,0.06,null,null,null,null,null,null,null,null,null,7.0000000000000007E-2,null,null,null,null,null,null,null,null,null,0.08,null,null,null,null,null,null,null,null,null,0.09,null,null,null,null,null,null,null,null,null,null,null,null,null,null,null,0,"Nombre du départ"]
[null,null,null,null,null,null,null,null,null,null,null,null,null,null,null,null,null,null,null,null,null,null,null,null,null,null,null,null,null,null,null,null,null,null,null,null,null,null,null,null,null,null,null,null,null,null,null,null,null,null,null,null,null,null,null,null,null,null,null,null,null,null,null,null,null,null,null,null,null,null,null,null,null,null,null,null,null,null,null,null,null,null,null,null,null,null,null,null,null,null,null,null,null,null,null,null,null,null,null,null,null,null,null,null,null,30026]
[]
[]
[]
[]
[]
[null,null,null,null,null,null,null,null,null,null,null,null,null,null,null,null,null,null,null,null,"↑",null,null,null,null,null,"↑",null,null,null,null,null,null,null,null,null,"↑",null,null,null,null,null,null,null,null,null,null,null,null,null,"↑",null,null,null,null,null,null,null,null,null,null,null,null,null,null,null,null,null,null,null,null,null,null,null,null,null,null,null,null,null,null,null,null,null,null,null,null,null,null,null,null,null,null,null,null,null,null,"↑"]
[null,null,null,null,null,null,null,null,null,null,null,null,null,null,null,null,null,null,null,null,21,null,null,null,null,null,27,null,null,null,null,null,null,null,null,null,37,null,null,null,null,null,null,null,null,null,null,null,null,null,51,null,null,null,null,null,null,null,null,null,null,null,null,null,null,null,null,null,null,null,null,null,null,null,null,null,null,null,null,null,null,null,null,null,null,null,null,null,null,null,null,null,null,null,null,null,null,98,null,null,null,null,null,null,null,"La droite sera graduée en millièmes."]
[null,null,null,null,null,null,null,null,null,null,null,null,null,null,null,null,null,null,null,null,1000,null,null,null,null,null,1000,null,null,null,null,null,null,null,null,null,1000,null,null,null,null,null,null,null,null,null,null,null,null,null,1000,null,null,null,null,null,null,null,null,null,null,null,null,null,null,null,null,null,null,null,null,null,null,null,null,null,null,null,null,null,null,null,null,null,null,null,null,null,null,null,null,null,null,null,null,null,null,1000]
[null,null,null,null,null,null,null,null,null,null,null,null,null,null,null,null,null,null,null,null,2.1000000000000001E-2,null,null,null,null,null,2.7E-2,null,null,null,null,null,null,null,null,null,3.6999999999999998E-2,null,null,null,null,null,null,null,null,null,null,null,null,null,5.0999999999999997E-2,null,null,null,null,null,null,null,null,null,null,null,null,null,null,null,null,null,null,null,null,null,null,null,null,null,null,null,null,null,null,null,null,null,null,null,null,null,null,null,null,null,null,null,null,null,null,9.8000000000000004E-2]
[]
[]
[]
[]
["D",null,null,null,null,null,null,null,null,null,null,null,null,null,null,null,null,null,null,null,null,null,null,null,null,null,null,null,null,null,null,null,null,null,null,null,null,null,null,null,null,null,null,null,null,null,null,null,null,null,null,null,null,null,null,null,null,null,null,null,null,null,null,null,null,null,null,null,null,null,null,null,null,null,null,null,null,null,null,null,null,null,null,null,null,null,null,null,null,null,null,null,null,null,null,null,null,null,null,null,null,null,"Nombre de fractions :",null,5,10,"Dénominateur"]
[0,null,null,null,null,null,null,null,null,0.01,null,null,null,null,null,null,null,null,null,0.02,null,null,null,null,null,null,null,null,null,0.03,null,null,null,null,null,null,null,null,null,0.04,null,null,null,null,null,null,null,null,null,0.05,null,null,null,null,null,null,null,null,null,0.06,null,null,null,null,null,null,null,null,null,7.0000000000000007E-2,null,null,null,null,null,null,null,null,null,0.08,null,null,null,null,null,null,null,null,null,0.09,null,null,null,null,null,null,null,null,null,null,null,null,null,null,null,0,"Nombre du départ"]
[]
[]
[]
[]
[]
[]
[null,null,null,null,null,null,"↑",null,null,null,null,null,null,null,null,null,null,"↑",null,null,null,null,null,null,null,null,null,null,null,null,null,null,null,null,null,null,null,null,null,null,null,null,null,null,"↑",null,null,null,null,null,null,null,null,null,null,null,null,null,null,null,null,null,null,null,null,null,null,null,null,null,null,null,null,null,null,null,null,null,null,null,null,null,null,null,null,"↑",null,null,null,null,null,"↑"]
[null,null,null,null,null,null,7,null,null,null,null,null,null,null,null,null,null,18,null,null,null,null,null,null,null,null,null,null,null,null,null,null,null,null,null,null,null,null,null,null,null,null,null,null,45,null,null,null,null,null,null,null,null,null,null,null,null,null,null,null,null,null,null,null,null,null,null,null,null,null,null,null,null,null,null,null,null,null,null,null,null,null,null,null,null,86,null,null,null,null,null,92,null,null,null,null,null,null,null,null,null,null,null,null,null,"La droite sera graduée en millièmes."]
[null,null,null,null,null,null,1000,null,null,null,null,null,null,null,null,null,null,1000,null,null,null,null,null,null,null,null,null,null,null,null,null,null,null,null,null,null,null,null,null,null,null,null,null,null,1000,null,null,null,null,null,null,null,null,null,null,null,null,null,null,null,null,null,null,null,null,null,null,null,null,null,null,null,null,null,null,null,null,null,null,null,null,null,null,null,null,1000,null,null,null,null,null,1000]
[null,null,null,null,null,null,7.0000000000000001E-3,null,null,null,null,null,null,null,null,null,null,1.7999999999999999E-2,null,null,null,null,null,null,null,null,null,null,null,null,null,null,null,null,null,null,null,null,null,null,null,null,null,null,4.4999999999999998E-2,null,null,null,null,null,null,null,null,null,null,null,null,null,null,null,null,null,null,null,null,null,null,null,null,null,null,null,null,null,null,null,null,null,null,null,null,null,null,null,null,8.5999999999999993E-2,null,null,null,null,null,9.1999999999999998E-2]
[]
[]
[]
[]
[]
["A"]
[0,null,null,null,null,null,null,null,null,0.01,null,null,null,null,null,null,null,null,null,0.02,null,null,null,null,null,null,null,null,null,0.03,null,null,null,null,null,null,null,null,null,0.04,null,null,null,null,null,null,null,null,null,0.05,null,null,null,null,null,null,null,null,null,0.06,null,null,null,null,null,null,null,null,null,7.0000000000000007E-2,null,null,null,null,null,null,null,null,null,0.08,null,null,null,null,null,null,null,null,null,0.09]
[]
[]
[]
[]
[]
[]
[null,null,null,null,null,null,null,null,null,null,null,null,null,null,null,null,null,null,null,null,null,null,null,null,null,null,null,null,null,null,null,"↑",null,null,null,null,null,null,null,null,null,null,"↑",null,null,null,null,null,null,null,null,null,null,"↑",null,null,null,null,null,null,null,null,null,"↑",null,null,null,null,null,null,null,null,null,"↑"]
[null,null,null,null,null,null,null,null,null,null,null,null,null,null,null,null,null,null,null,null,null,null,null,null,null,null,null,null,null,null,null,32,null,null,null,null,null,null,null,null,null,null,43,null,null,null,null,null,null,null,null,null,null,54,null,null,null,null,null,null,null,null,null,64,null,null,null,null,null,null,null,null,null,74]
[null,null,null,null,null,null,null,null,null,null,null,null,null,null,null,null,null,null,null,null,null,null,null,null,null,null,null,null,null,null,null,1000,null,null,null,null,null,null,null,null,null,null,1000,null,null,null,null,null,null,null,null,null,null,1000,null,null,null,null,null,null,null,null,null,1000,null,null,null,null,null,null,null,null,null,1000]
[null,null,null,null,null,null,null,null,null,null,null,null,null,null,null,null,null,null,null,null,null,null,null,null,null,null,null,null,null,null,null,3.2000000000000001E-2,null,null,null,null,null,null,null,null,null,null,4.2999999999999997E-2,null,null,null,null,null,null,null,null,null,null,5.3999999999999999E-2,null,null,null,null,null,null,null,null,null,6.4000000000000001E-2,null,null,null,null,null,null,null,null,null,7.3999999999999996E-2]
[]
[]
[]
[]
["B"]
[0,null,null,null,null,null,null,null,null,0.01,null,null,null,null,null,null,null,null,null,0.02,null,null,null,null,null,null,null,null,null,0.03,null,null,null,null,null,null,null,null,null,0.04,null,null,null,null,null,null,null,null,null,0.05,null,null,null,null,null,null,null,null,null,0.06,null,null,null,null,null,null,null,null,null,7.0000000000000007E-2,null,null,null,null,null,null,null,null,null,0.08,null,null,null,null,null,null,null,null,null,0.09]
[]
[]
[]
[]
[]
[]
[null,null,"↑",null,null,null,null,null,null,null,null,null,null,null,null,null,"↑",null,null,null,null,null,null,null,null,null,null,null,null,null,null,null,null,null,null,null,null,null,null,null,null,null,null,null,null,null,null,null,null,null,null,null,null,null,null,null,null,null,"↑",null,null,null,null,null,null,null,null,"↑",null,null,null,null,null,null,null,null,null,null,null,null,null,null,null,null,null,null,"↑"]
[null,null,3,null,null,null,null,null,null,null,null,null,null,null,null,null,17,null,null,null,null,null,null,null,null,null,null,null,null,null,null,null,null,null,null,null,null,null,null,null,null,null,null,null,null,null,null,null,null,null,null,null,null,null,null,null,null,null,59,null,null,null,null,null,null,null,null,68,null,null,null,null,null,null,null,null,null,null,null,null,null,null,null,null,null,null,87]
[null,null,1000,null,null,null,null,null,null,null,null,null,null,null,null,null,1000,null,null,null,null,null,null,null,null,null,null,null,null,null,null,null,null,null,null,null,null,null,null,null,null,null,null,null,null,null,null,null,null,null,null,null,null,null,null,null,null,null,1000,null,null,null,null,null,null,null,null,1000,null,null,null,null,null,null,null,null,null,null,null,null,null,null,null,null,null,null,1000]
[null,null,3.0000000000000001E-3,null,null,null,null,null,null,null,null,null,null,null,null,null,1.7000000000000001E-2,null,null,null,null,null,null,null,null,null,null,null,null,null,null,null,null,null,null,null,null,null,null,null,null,null,null,null,null,null,null,null,null,null,null,null,null,null,null,null,null,null,5.8999999999999997E-2,null,null,null,null,null,null,null,null,6.8000000000000005E-2,null,null,null,null,null,null,null,null,null,null,null,null,null,null,null,null,null,null,8.6999999999999994E-2]
[]
[]
[]
[]
["C"]
[0,null,null,null,null,null,null,null,null,0.01,null,null,null,null,null,null,null,null,null,0.02,null,null,null,null,null,null,null,null,null,0.03,null,null,null,null,null,null,null,null,null,0.04,null,null,null,null,null,null,null,null,null,0.05,null,null,null,null,null,null,null,null,null,0.06,null,null,null,null,null,null,null,null,null,7.0000000000000007E-2,null,null,null,null,null,null,null,null,null,0.08,null,null,null,null,null,null,null,null,null,0.09]
[]
[]
[]
[]
[]
[]
[null,null,null,null,null,null,null,null,null,null,null,null,null,null,null,null,null,null,null,null,"↑",null,null,null,null,null,"↑",null,null,null,null,null,null,null,null,null,"↑",null,null,null,null,null,null,null,null,null,null,null,null,null,"↑",null,null,null,null,null,null,null,null,null,null,null,null,null,null,null,null,null,null,null,null,null,null,null,null,null,null,null,null,null,null,null,null,null,null,null,null,null,null,null,null,null,null,null,null,null,null,"↑"]
[null,null,null,null,null,null,null,null,null,null,null,null,null,null,null,null,null,null,null,null,21,null,null,null,null,null,27,null,null,null,null,null,null,null,null,null,37,null,null,null,null,null,null,null,null,null,null,null,null,null,51,null,null,null,null,null,null,null,null,null,null,null,null,null,null,null,null,null,null,null,null,null,null,null,null,null,null,null,null,null,null,null,null,null,null,null,null,null,null,null,null,null,null,null,null,null,null,98]
[null,null,null,null,null,null,null,null,null,null,null,null,null,null,null,null,null,null,null,null,1000,null,null,null,null,null,1000,null,null,null,null,null,null,null,null,null,1000,null,null,null,null,null,null,null,null,null,null,null,null,null,1000,null,null,null,null,null,null,null,null,null,null,null,null,null,null,null,null,null,null,null,null,null,null,null,null,null,null,null,null,null,null,null,null,null,null,null,null,null,null,null,null,null,null,null,null,null,null,1000]
[null,null,null,null,null,null,null,null,null,null,null,null,null,null,null,null,null,null,null,null,2.1000000000000001E-2,null,null,null,null,null,2.7E-2,null,null,null,null,null,null,null,null,null,3.6999999999999998E-2,null,null,null,null,null,null,null,null,null,null,null,null,null,5.0999999999999997E-2,null,null,null,null,null,null,null,null,null,null,null,null,null,null,null,null,null,null,null,null,null,null,null,null,null,null,null,null,null,null,null,null,null,null,null,null,null,null,null,null,null,null,null,null,null,null,9.8000000000000004E-2]
[]
[]
[]
[]
["D"]
[0,null,null,null,null,null,null,null,null,0.01,null,null,null,null,null,null,null,null,null,0.02,null,null,null,null,null,null,null,null,null,0.03,null,null,null,null,null,null,null,null,null,0.04,null,null,null,null,null,null,null,null,null,0.05,null,null,null,null,null,null,null,null,null,0.06,null,null,null,null,null,null,null,null,null,7.0000000000000007E-2,null,null,null,null,null,null,null,null,null,0.08,null,null,null,null,null,null,null,null,null,0.09]
[]
[]
[]
[]
[]
[]
[null,null,null,null,null,null,"↑",null,null,null,null,null,null,null,null,null,null,"↑",null,null,null,null,null,null,null,null,null,null,null,null,null,null,null,null,null,null,null,null,null,null,null,null,null,null,"↑",null,null,null,null,null,null,null,null,null,null,null,null,null,null,null,null,null,null,null,null,null,null,null,null,null,null,null,null,null,null,null,null,null,null,null,null,null,null,null,null,"↑",null,null,null,null,null,"↑"]
[null,null,null,null,null,null,7,null,null,null,null,null,null,null,null,null,null,18,null,null,null,null,null,null,null,null,null,null,null,null,null,null,null,null,null,null,null,null,null,null,null,null,null,null,45,null,null,null,null,null,null,null,null,null,null,null,null,null,null,null,null,null,null,null,null,null,null,null,null,null,null,null,null,null,null,null,null,null,null,null,null,null,null,null,null,86,null,null,null,null,null,92]
[null,null,null,null,null,null,1000,null,null,null,null,null,null,null,null,null,null,1000,null,null,null,null,null,null,null,null,null,null,null,null,null,null,null,null,null,null,null,null,null,null,null,null,null,null,1000,null,null,null,null,null,null,null,null,null,null,null,null,null,null,null,null,null,null,null,null,null,null,null,null,null,null,null,null,null,null,null,null,null,null,null,null,null,null,null,null,1000,null,null,null,null,null,1000]
[null,null,null,null,null,null,7.0000000000000001E-3,null,null,null,null,null,null,null,null,null,null,1.7999999999999999E-2,null,null,null,null,null,null,null,null,null,null,null,null,null,null,null,null,null,null,null,null,null,null,null,null,null,null,4.4999999999999998E-2,null,null,null,null,null,null,null,null,null,null,null,null,null,null,null,null,null,null,null,null,null,null,null,null,null,null,null,null,null,null,null,null,null,null,null,null,null,null,null,null,8.5999999999999993E-2,null,null,null,null,null,9.1999999999999998E-2]